Cogmind - Beta 12 @@@ ROGUE MODE // 2023.03.25 @ 02:20:41 // Winter2019/RPGLIKE Player: ArabianSandBoa Result: Destroyed by B-86 Titan with Hardcell Cannon Performance ------------- Evolutions (6) 3000 Regions Visited (34) 6800 Robots Destroyed (1214) 6070 Value Destroyed (59176) 59176 Prototype IDs (105) 2100 Alien Tech Used (0) 0 Bonus (51919) 51919 TOTAL SCORE: 129065 Bonus ------- Triggered High Security 1500 High Alert Combat Kills 24704 Follower Combat Kills 733 Entered Garrisons 800 Aligned with FarCom 300 Met Data Miner 300 Met Imprinter 300 Destroyed Z-Imprinter 1000 Triggered Deep Caves Wall 500 Exposed GOLEM Chamber 500 Met Warlord at Base 500 MAIN.C Attacked Warlord 500 Warlord Defense Kills 23532 Friendly Fire -3250 Cogmind --------- Core Integrity 0/950 Matter 252/300 Energy 2200/2200 System Corruption 12% Temperature Cool (0) Movement Treading (180) Location -4/Extension Parts ------- > --- POWER (3) -------- Improved Fusion Compressor Vortex Chain Reactor > --- PROPULSION (6) --- Improved Heavy Siege Treads Improved Heavy Siege Treads (fused) > --- UTILITY (9) ------ Superbattery Improved Phase Shifter Advanced Phase Shifter Improved Medium Armor Plating Improved Medium Armor Plating Improved Medium Armor Plating Improved System Shield Ghost Barrier Quantum Router > --- WEAPON (6) ------- 8R-AWN's Boregun 8R-AWN's Boregun > --- INVENTORY (6) ---- Zionite Metafield Generator Vortex Catalyst Activator (1) Peak State ------------ > --- POWER ------------ Zionite Light DM Reactor Vortex Chain Reactor > --- PROPULSION ------- Zionite Glidesys I Zionite Glidesys I Zionite Glidesys I Zionite Glidesys II Cooled Antigrav System Cooled Antigrav System > --- UTILITY ---------- Superbattery Zionite Metafield Generator Experimental Core Analyzer Experimental Reaction Control System Advanced Phase Shifter System Mapper Ghost Barrier Quantum Router System Purifier > --- WEAPON ----------- Vortex Driver Vortex Driver 8R-AWN's Boregun 8R-AWN's Boregun Vortex Catalyst Activator > --- INVENTORY -------- Plasma Storm CR-A16's Behemoth Slayer [Rating: 217] Favorites ----------- Power Zionite Light DM Reactor Engine Light Angular Momentum Engine Power Core Light Neutrino Core Reactor Zionite Light DM Reactor Propulsion Zionite Glidesys I Treads Improved Treads Leg Aluminum Leg Wheel Armored Huge Wheel Hover Unit Zionite Glidesys I Flight Unit Improved Diametric Drive Utility Salvage Targeting Computer Device Improved Transmission Jammer Storage Superbattery Processor Salvage Targeting Computer Hackware Hacking Suite Protection Medium Reactive Plating Weapon 8R-AWN's Boregun Energy Gun Heavy EM Pulse Gun Energy Cannon Vortex Driver Ballistic Gun 8R-AWN's Boregun Ballistic Cannon Mass Driver Launcher Rocket Array Special Weapon RU-N14's Throwing Claymores v3 Slashing Weapon Katana Piercing Weapon CR-A16's Pointy Stick Build | -11 -10 -10 -9 -9 -9 -8 -8 -8 -8 -8 -8 -8 -7 -7 -7 -7 -7 -6 -6 -6 -6 -6 -5 -5 -5 -5 -5 -5 -5 -5 -5 -4 -4 -4 ------- Run | Jun Mat Min Mat Min Exi Min Mat Gar Mat Gar Mat Gar Fac Low Low Zio Dee Pro Fac Low Low Dat Pro Fac Was Fac Gar Fac Upp Upp War Pro Fac Ext Slots Evolved 20 | 4 2 1 3 . . . . 3 . . . . . . . 1 . . 3 . . . 1 1 . . . . . . 1 . . . Power 2 | . . . 1 . . . . 1 . . . . . . . . . . . . . . . . . . . . . . . . . . Propulsion 5 | . 1 . . . . . . . . . . . . . . . . . 3 . . . . . . . . . . . 1 . . . Utility 8 | 3 1 1 1 . . . . 1 . . . . . . . 1 . . . . . . . . . . . . . . . . . . Weapon 5 | 1 . . 1 . . . . 1 . . . . . . . . . . . . . . 1 1 . . . . . . . . . . Parts Attached 381 | 4 22 4 26 7 27 14 6 16 1 1 . 4 6 1 . 17 40 . 22 2 1 10 4 4 . 10 3 . . . 71 2 47 9 Power 20 | . . 1 4 . 3 1 . 1 . . . . 1 . . . 3 . . . . . . . . . 1 . . . 2 . 3 . Engine 5 | . . 1 4 . . . . . . . . . . . . . . . . . . . . . . . . . . . . . . . Core 5 | . . . . . 2 . . 1 . . . . 1 . . . . . . . . . . . . . . . . . . . 1 . Reactor 10 | . . . . . 1 1 . . . . . . . . . . 3 . . . . . . . . . 1 . . . 2 . 2 . Propulsion 34 | 1 3 . 3 2 . . . . . . . . . . . . 4 . 5 . . 2 . . . . . . . . 8 . 5 1 Treads 8 | . 2 . 3 1 . . . . . . . . . . . . . . . . . . . . . . . . . . . . 2 . Leg 3 | . . . . . . . . . . . . . . . . . 1 . . . . 1 . . . . . . . . . . . 1 Wheel 3 | 1 1 . . 1 . . . . . . . . . . . . . . . . . . . . . . . . . . . . . . Hover 19 | . . . . . . . . . . . . . . . . . 3 . 5 . . 1 . . . . . . . . 7 . 3 . Flight 1 | . . . . . . . . . . . . . . . . . . . . . . . . . . . . . . . 1 . . . Utility 223 | 2 9 2 7 3 13 13 6 14 . 1 . 4 1 1 . 12 29 . 16 2 1 8 1 2 . 10 1 . . . 27 . 33 5 Device 151 | 2 5 . 5 1 7 8 3 11 . 1 . 3 . 1 . 4 18 . 15 2 1 3 1 2 . 10 1 . . . 20 . 26 1 Storage 11 | . . . . . . 1 . . . . . . . . . . 3 . . . . 2 . . . . . . . . 3 . 1 1 Processor 25 | . 3 1 1 2 3 2 1 . . . . . . . . 5 . . 1 . . . . . . . . . . . 3 . 3 . Hackware 10 | . 1 . . . . 1 1 . . . . 1 . . . 1 . . . . . 3 . . . . . . . . . . 2 . Protection 26 | . . 1 1 . 3 1 1 3 . . . . 1 . . 2 8 . . . . . . . . . . . . . 1 . 1 3 Artifact . | . . . . . . . . . . . . . . . . . . . . . . . . . . . . . . . . . . . Weapon 104 | 1 10 1 12 2 11 . . 1 1 . . . 4 . . 5 4 . 1 . . . 3 2 . . 1 . . . 34 2 6 3 Energy Gun 17 | . 4 . . . . . . . . . . . 2 . . . 2 . . . . . . . . . . . . . 6 1 1 1 Energy Cannon 15 | . . 1 2 . . . . . . . . . 1 . . . . . . . . . . . . . . . . . 11 . . . Ballistic Gun 33 | 1 2 . 6 1 6 . . . 1 . . . . . . 2 . . . . . . 3 1 . . 1 . . . 5 . 2 2 Ballistic Cannon 7 | . 1 . . 1 . . . 1 . . . . . . . . . . . . . . . . . . . . . . 3 . 1 . Launcher 16 | . 3 . 1 . 1 . . . . . . . 1 . . 1 1 . 1 . . . . . . . . . . . 4 1 2 . Special Weapon 4 | . . . . . . . . . . . . . . . . . . . . . . . . . . . . . . . 4 . . . Impact Weapon . | . . . . . . . . . . . . . . . . . . . . . . . . . . . . . . . . . . . Slashing Weapon 7 | . . . 3 . 4 . . . . . . . . . . . . . . . . . . . . . . . . . . . . . Piercing Weapon 5 | . . . . . . . . . . . . . . . . 2 1 . . . . . . 1 . . . . . . 1 . . . Special Melee Weapon . | . . . . . . . . . . . . . . . . . . . . . . . . . . . . . . . . . . . Unidentified Prototypes 61 | . . . 1 . 11 5 . . . . . . 1 . . 3 13 . 1 . . 5 . . . . . . . . 15 . 6 . Corrupted Parts 1 | . . . 1 . . . . . . . . . . . . . . . . . . . . . . . . . . . . . . . System Corruption 3 | . . . 3 . . . . . . . . . . . . . . . . . . . . . . . . . . . . . . . Parts Lost 7 | . . . 2 . . . 1 . . . . . . . . 1 . . . . . . . . . . . . . . . . 2 1 Power 1 | . . . . . . . . . . . . . . . . . . . . . . . . . . . . . . . . . 1 . Propulsion 2 | . . . 1 . . . . . . . . . . . . . . . . . . . . . . . . . . . . . 1 . Utility 4 | . . . 1 . . . 1 . . . . . . . . 1 . . . . . . . . . . . . . . . . . 1 Weapon . | . . . . . . . . . . . . . . . . . . . . . . . . . . . . . . . . . . . Highest Loss Streak 2 | . . . 2 . . . 1 . . . . . . . . 1 . . . . . . . . . . . . . . . . 2 1 To Critical Strikes . | . . . . . . . . . . . . . . . . . . . . . . . . . . . . . . . . . . . Average Slot Usage (%) 89 | . 96 99 98 96 83 85 90 91 93 94 94 93 93 94 94 74 86 83 99 100 100 99 100 99 95 94 94 95 95 95 86 65 71 58 Engine 2 | . 11 9 9 14 10 . . . . . . . . . . . . . . . . . . . . . . . . . . . . . Core 3 | . . . . . 2 7 7 8 11 11 11 11 10 11 11 11 . . . . . . . . . . . . . . . . 2 4 Reactor 7 | . . . . . 1 6 7 6 5 5 5 5 5 5 5 5 15 16 14 14 14 14 13 13 13 13 13 13 13 13 8 8 5 4 Treads 2 | . 6 19 15 8 . . . . . . . . . . . . . . . . . . . . . . . . . . . . 1 8 Wheel 2 | . 6 . . 2 7 7 7 6 5 5 5 5 5 5 5 5 . . . . . . . . . . . . . . . . . . Hover 8 | . . . . . . . . . . . . . . . . . 10 11 21 23 23 22 22 21 21 21 21 21 21 21 22 25 18 6 Device 20 | . 33 5 7 7 10 14 20 22 29 29 29 29 29 29 29 5 22 27 34 33 35 25 22 21 21 20 21 21 21 21 16 12 13 7 Storage 1 | . . . . . . . . . . . . . . . . . 3 5 4 4 4 4 4 4 4 4 4 4 4 4 3 . . . Processor 10 | . 7 33 31 34 27 21 15 17 11 11 11 11 11 11 11 16 5 . 3 4 2 . . . . . . . . . 2 . . . Hackware 6 | . 8 9 8 7 4 . 6 6 5 5 5 4 1 . . 3 . . . . . 11 13 13 13 13 13 13 13 13 12 12 14 14 Protection 1 | . . . 5 . 2 7 5 . . . . . 3 5 5 8 2 . . . . . . . . . . . . . . . . 2 Energy Gun 1 | . 13 15 . . . . . . . . . . 5 . . . . . . . . . . . . . . . . . . 3 . 3 Energy Cannon 1 | . . 4 3 . . . . . . . . . 1 5 5 . . . . . . . . . . . . . . . 5 . . . Ballistic Gun 11 | . 7 . 12 20 8 21 21 19 22 23 23 23 12 11 11 7 11 11 9 9 9 9 10 19 17 17 16 17 17 17 6 4 7 4 Launcher 2 | . 1 . . . . . . . . . . . 2 5 5 4 4 5 4 4 4 4 3 . . . . . . . 2 . 4 . Piercing Weapon 1 | . . . . . . . . . . . . . . . . 3 4 5 4 4 4 4 3 3 4 4 4 4 4 4 . . . . Naked Turns . | . . . . . . . . . . . . . . . . . . . . . . . . . . . . . . . . . . . Heaviest Build 135 | 9 14 26 38 33 77 65 61 74 74 68 67 73 101 101 96 116 115 101 101 69 70 70 74 76 70 70 75 75 75 75 135 120 120 116 Greatest Support 155 | 16 46 46 46 43 40 28 28 28 28 28 28 28 28 28 28 28 30 30 72 72 72 72 72 72 72 72 77 77 77 77 101 89 155 155 Greatest Overweight (x) 21 | . 4 . 5 9 2 2 2 2 2 2 2 2 3 3 3 4 7 3 3 . . 21 1 1 . 1 1 . . . 1 1 1 . Average Overweight (x) . | . . . . . . 1 1 1 2 2 2 2 2 3 3 2 2 3 . . . . . . . . . . . . . 1 . . Largest Inventory Capacity 6 | . 2 2 4 4 5 6 6 6 6 6 6 6 6 6 6 6 6 6 6 6 6 6 6 6 6 6 6 6 6 6 6 6 6 6 Average Capacity 5 | . . 2 3 4 4 5 6 6 6 6 6 6 6 6 6 6 6 6 6 6 6 6 6 6 6 6 6 6 6 6 6 6 6 6 Most Carried 6 | . 2 2 4 4 5 6 6 6 6 6 6 6 6 6 6 6 6 6 6 6 6 6 6 6 6 6 6 6 6 6 6 6 6 6 Average Carried 5 | . . 1 3 3 3 5 5 5 6 6 6 6 6 6 6 5 5 6 5 6 5 5 5 5 5 5 5 6 6 6 5 5 5 4 Final Capacity 6 | . 2 2 4 4 5 6 6 6 6 6 6 6 6 6 6 6 6 6 6 6 6 6 6 6 6 6 6 6 6 6 6 6 6 6 Final Carried 6 | . 2 2 4 4 5 6 6 6 6 6 6 6 6 6 6 5 6 6 6 6 6 6 6 6 5 6 6 6 6 6 6 6 5 3 Class Distribution -------------------- 35% | Scavenger-Mutant 18% | Hacker-Mutant 7% | Wizard-Sprinter 7% | Wizard-Mutant 5% | Hacker-Gunner 4% | Wizard-Executioner 3% | Wizard-Scout 3% | Hacker-Skirmisher Dominant Class ---------------- Hacker-Skirmisher | -10/Materials Hacker-Mutant | -10/Mines Hacker-Mutant | -9/Materials Hacker-Gunner | -9/Mines Hacker-Mutant | -9/Exiles Scavenger-Mutant | -8/Mines Scavenger-Mutant | -8/Materials Scavenger-Mutant | -8/Garrison Scavenger-Mutant | -8/Materials Scavenger-Mutant | -8/Garrison Scavenger-Mutant | -8/Materials Scavenger-Mutant | -8/Garrison Scavenger-Mutant | -7/Factory Scavenger-Mutant | -7/Lower Caves Scavenger-Mutant | -7/Lower Caves Hacker-Mutant | -7/Zion Scavenger-Mutant | -7/Deep Caves Scavenger-Mutant | -6/Proximity Caves Scavenger-Scout | -6/Factory Scavenger-Sprinter | -6/Lower Caves Scavenger-Sprinter | -6/Lower Caves Wizard-Sprinter | -6/Data Miner Wizard-Sprinter | -5/Proximity Caves Wizard-Sprinter | -5/Factory Wizard-Sprinter | -5/Waste Wizard-Sprinter | -5/Factory Wizard-Sprinter | -5/Garrison Wizard-Sprinter | -5/Factory Wizard-Sprinter | -5/Upper Caves Wizard-Sprinter | -5/Upper Caves Wizard-Mutant | -5/Warlord Wizard-Executioner | -4/Proximity Caves Wizard-Scout | -4/Factory Wizard-Mutant | -4/Extension Resources | -11 -10 -10 -9 -9 -9 -8 -8 -8 -8 -8 -8 -8 -7 -7 -7 -7 -7 -6 -6 -6 -6 -6 -5 -5 -5 -5 -5 -5 -5 -5 -5 -4 -4 -4 ----------- Run | Jun Mat Min Mat Min Exi Min Mat Gar Mat Gar Mat Gar Fac Low Low Zio Dee Pro Fac Low Low Dat Pro Fac Was Fac Gar Fac Upp Upp War Pro Fac Ext Matter Collected 32127 | 254 722 53 1826 455 465 910 1143 1680 577 1067 . 1276 798 138 516 40 1660 264 3910 308 382 328 991 1043 187 900 1538 109 518 837 1375 92 4944 821 Remotely 4887 | . 88 . . . . . . . . . . . . . . . 40 264 3385 . 111 30 . . . . . . . . . . 969 . Salvage Created 58668 | 217 1623 506 2940 1180 380 842 2760 1617 1038 1090 . 1716 1199 367 915 . 2645 389 7955 327 186 338 1432 1851 1767 945 2191 275 651 1015 5231 1391 7347 4342 Parts 3020 | 15 79 33 217 55 71 73 166 129 71 84 . 88 91 13 42 . 105 35 314 24 29 32 75 119 38 58 136 20 35 55 218 45 370 85 Haulers Intercepted 23 | . 2 . 6 . . . 4 . 4 . . . 3 . . . . . 2 . . . . . . 1 . . . . . . 1 . Recyclers Shooed 20 | . 4 . 3 . . . 3 . . . . . . . . . . . . . . . . 3 . . . . . . . . 7 . Parts Field Recycled . | . . . . . . . . . . . . . . . . . . . . . . . . . . . . . . . . . . . Retrieved Matter . | . . . . . . . . . . . . . . . . . . . . . . . . . . . . . . . . . . . Parts Self-Destructed 339 | . . . . . . . . . . . . . . 13 42 3 . 35 . 23 29 . 75 . . . . . 37 58 . 24 . . Prevented 3 | . . . . . . . . . . . . . . . . . . . . . . . . . . . . . 3 . . . . . Kills | -11 -10 -10 -9 -9 -9 -8 -8 -8 -8 -8 -8 -8 -7 -7 -7 -7 -7 -6 -6 -6 -6 -6 -5 -5 -5 -5 -5 -5 -5 -5 -5 -4 -4 -4 ------- Run | Jun Mat Min Mat Min Exi Min Mat Gar Mat Gar Mat Gar Fac Low Low Zio Dee Pro Fac Low Low Dat Pro Fac Was Fac Gar Fac Upp Upp War Pro Fac Ext Combat Hostiles Destroyed 1117 | . 19 4 57 17 3 14 41 39 14 26 . 30 18 8 14 . 64 12 131 11 8 4 29 18 4 14 41 2 10 21 210 24 148 62 Melee 6 | . . . . . . . . . . . . . . . . . 3 . 1 . 1 . . . . . . . . . . . 1 . Guns 709 | . 18 4 45 17 2 14 41 39 14 26 . 30 13 5 14 . 24 12 87 11 7 4 29 17 4 14 41 2 9 21 25 2 80 38 Cannons 35 | . . . 8 . . . . . . . . . . . . . . . . . . . . . . . . . . . 27 . . . AOE 362 | . 1 . 4 . 1 . . . . . . . 5 3 . . 37 . 42 . . . . 1 . . . . . . 158 21 67 22 Classes Destroyed 33 | 3 5 . 5 2 1 1 3 2 . 1 . . . . . . 4 . 1 . . . . . 1 . 1 . . . 3 . . . Worker 37 | 2 3 1 1 1 . 2 3 . 2 . . . 3 . . . . . 9 . . . . 2 . . . 1 . . . . 7 . Builder 30 | . 3 . 5 . . 4 3 . 1 . . . 4 . . . . . 1 . . . . 1 . . . 3 . . . . 4 1 Tunneler 14 | 5 1 1 . 2 . 2 . . 1 . . . . . . . . . . . . . . 1 . . . . . . . . 1 . Hauler 23 | . 2 . 6 . . . 4 . 4 . . . 3 . . . . . 2 . . . . . . 1 . . . . . . 1 . Recycler 40 | 1 7 6 2 5 . 1 3 . 2 . . . 1 . . . . . 3 . . . . 2 . 1 . . . . . . 6 . Carrier 10 | . . . . . . . 1 1 . . . . . . . . . . 5 . . . . . . . . . . . . . 2 1 Mechanic 27 | . . . 2 . . . 1 . . . . . . . . . . . 10 . . . . 1 . . . . . . 4 . 5 4 Operator 15 | . 2 . 2 . . . 2 . . . . . 2 . . . . . 2 . . . . 2 . 1 . . . . . . 2 . Turret 1 | . . . . . 1 . . . . . . . . . . . . . . . . . . . . . . . . . . . . . Watcher 29 | . 3 . 4 . . . 4 1 3 . . . . . . . . . 2 . . . . 2 . 1 . 1 . . . . 7 1 Swarmer 161 | . . . 13 4 . 4 12 6 4 5 . 4 3 3 . . . 5 3 3 3 . 17 . . 4 9 . 3 7 21 6 12 10 Cutter 13 | . . . . . . . . . . . . . . . . . . . . . . . . . . . 4 . . . . . 9 . Saboteur 35 | . . . . . . . . . . . . . . . . . . . 7 . . . . 1 . . . . . . 19 . 7 1 Grunt 445 | . 19 4 30 10 . 8 21 17 7 9 . 13 7 4 11 . . 4 56 7 2 . 8 6 . 6 10 . 4 8 95 11 50 18 Brawler 54 | . . . 4 1 . . 2 3 . . . 1 1 . 1 . . . 12 . . . 1 . . . . . . . 11 3 9 5 Duelist 43 | . . . 3 1 . . 1 2 . 1 . 1 2 . . . . . 8 . 1 . . 1 . . 2 . . 1 6 1 9 3 Protector 30 | . . . . . . . 1 . . . . . 2 . . . . . 5 . . . . . . . . . . . 12 . 5 5 Sentry 73 | . . . 7 . . . 2 4 2 3 . 5 1 . 1 . . 1 15 . . . 2 5 . . 8 2 1 3 . 1 6 4 Demolisher 5 | . . . . . . . . . . . . . . . . . . . . . . . . . . . . . . . 4 . . 1 Specialist 11 | . . . . . . . . . . 4 . . . . . . . . . . . . . . . . 2 . . . 2 . . 3 Hunter 70 | . . . . . . 1 1 . 1 1 . 1 . 1 . . . 1 16 . 1 . . 2 . 3 2 . . 2 9 2 17 9 Programmer 72 | . . . . . . . . 6 . 3 . 4 1 . . . . . 9 1 . . . 3 . 1 3 . 2 . 12 . 22 5 Heavy 4 | . . . . . . . 1 . . . . . 1 . . . . . . . . . . . . . . . . . . . 2 . Behemoth 9 | . . . . . . . . 1 . . . 1 . . 1 . . 1 1 . 1 . 1 . . . 1 . . . . . 1 . Compactor 4 | . . . . . . . . . . . . . . . . . . . . . . . . . 4 . . . . . . . . . Enhanced Grunt 4 | . . . . . . . . . . . . . . . . . . . . . . 4 . . . . . . . . . . . . Striker 10 | . . . . . . . . . . . . . . . . . . . . . . . . . . . . . . . 10 . . . Executioner 8 | . . . . . . . . . . . . . . . . . . . . . . . . . . . . . . . 8 . . . Zionite 9 | . . . . 1 8 . . . . . . . . . . . . . . . . . . . . . . . . . . . . . Z-Technician 1 | . . . . . . . . . . . . . . . . . 1 . . . . . . . . . . . . . . . . . Z-Light 8 | . . . . . . . . . . . . . . . . . 8 . . . . . . . . . . . . . . . . . Decomposer 1 | . . . . . . . . . . . . . . . . . . . . . 1 . . . . . . . . . . . . . Assembler 2 | . . . . . . . . . . . . . . . . . 2 . . . . . . . . . . . . . . . . . Assembled 46 | . . . . 1 2 . . . . . . . . . . . 42 . . . . . . . . . . . . . 1 . . . Golem 13 | . . . . . . . . . . . . . . . . . 13 . . . . . . . . . . . . . . . . . Thug 8 | . . 3 1 1 . . . . . 1 . 1 . . . . . . . . . . . . . . . . . . . . . 1 Fireman 2 | . . . . . . . . . . . . . . . . . 2 . . . . . . . . . . . . . . . . . Best Kill Streak 39 | 4 5 2 9 5 5 10 16 5 15 8 . 4 7 4 4 . 39 7 39 3 6 3 7 7 2 6 7 2 6 11 25 7 28 22 Combat Bots Only 38 | . 3 2 9 4 2 10 9 5 12 8 . 4 5 4 4 . 38 7 33 3 6 2 7 6 2 6 7 1 5 11 24 7 18 21 Max Kills in Single Turn 16 | 1 1 1 3 2 2 2 2 3 2 2 . 2 3 3 2 . 16 1 5 2 1 1 2 3 1 2 1 2 2 2 16 4 5 5 Gunslinging 1 | . . . 1 1 . . 1 . . . . . . . 1 . 1 . 1 . . . 1 . . . . . . 1 1 . 1 . Exploded 16 | . 1 . 3 . 1 . . . . . . . 3 3 . . 16 . 4 . . . . 1 . . . . . . 16 4 5 5 Melee 1 | . . . . . . . . . . . . . . . . . 1 . 1 . 1 . . . . . . . . . . . 1 . Uniques/NPCs Destroyed 7 | . . . . . 4 1 . . . . . . . . . . 1 . . . . 1 . . . . . . . . . . . . 8R-AWN (-9/Exiles) EX-BIN (-9/Exiles) EX-DEC (-9/Exiles) EX-HEX (-9/Exiles) AD-0RF (-8/Mines) Z-Imprinter (-7/Deep Caves) Data Miner (-6/Data Miner) Combat | -11 -10 -10 -9 -9 -9 -8 -8 -8 -8 -8 -8 -8 -7 -7 -7 -7 -7 -6 -6 -6 -6 -6 -5 -5 -5 -5 -5 -5 -5 -5 -5 -4 -4 -4 -------- Run | Jun Mat Min Mat Min Exi Min Mat Gar Mat Gar Mat Gar Fac Low Low Zio Dee Pro Fac Low Low Dat Pro Fac Was Fac Gar Fac Upp Upp War Pro Fac Ext Damage Taken 24232 | . 550 408 2529 340 824 734 649 515 460 940 . 631 175 78 325 . 1454 467 1754 127 369 . 581 632 . 655 789 193 212 142 1039 1096 3481 2083 Core 18272 | . 444 333 1848 276 636 372 341 407 362 750 . 507 127 54 222 . 811 370 1388 100 296 . 459 518 . 515 645 175 170 117 805 869 2797 1558 Absorbed by Shields 2029 | . . . . . . . . 20 . . . 28 168 74 277 . 444 . . . . . . . . . 30 . . . 988 . . . Reduced by Siege Mode 18 | . . . . . . . . . . . . . . . . . . . . . . . . . . . . . . . . . . 18 Redirected to Core 15880 | . 349 236 1489 208 554 349 314 372 316 638 . 421 113 44 204 . 712 352 1278 100 262 . 439 415 . 497 528 67 150 97 733 792 2472 1379 Redirected to Shielding 309 | . . . . . . 10 194 . . . . . . . . . 105 . . . . . . . . . . . . . . . . . Core Remaining (%) 87 | 100 . 100 . . . 82 . . . . . 97 . . . . . 100 . . . . 90 . . . . . . . . 40 . . Volleys Fired 2622 | 14 170 37 271 44 48 45 94 128 47 86 . 101 60 10 43 . 90 35 275 24 34 16 78 56 28 40 117 16 18 38 122 27 325 85 Largest 5 | 2 2 2 3 3 3 2 2 4 3 2 . 2 4 2 2 . 2 2 3 2 2 2 5 5 2 4 4 4 4 4 3 1 2 2 Hottest 300 | 60 90 108 108 98 85 60 60 142 85 60 . 60 236 60 60 . 60 60 105 60 60 60 159 159 60 126 126 126 126 126 300 300 60 300 Shots Fired 5206 | 28 304 74 499 132 78 90 188 254 96 172 . 202 119 19 86 . 175 70 529 48 68 32 159 195 56 105 256 34 64 151 202 27 569 125 Gun 4919 | 28 298 69 427 131 76 90 188 246 96 172 . 202 115 18 86 . 170 70 507 48 68 32 159 195 56 105 256 34 64 151 111 27 499 125 Cannon 155 | . . 5 70 1 . . . 8 . . . . 1 . . . . . . . . . . . . . . . . . 70 . . . Launcher 132 | . 6 . 2 . 2 . . . . . . . 3 1 . . 5 . 22 . . . . . . . . . . . 21 . 70 . Special . | . . . . . . . . . . . . . . . . . . . . . . . . . . . . . . . . . . . Kinetic 4677 | 14 164 . 424 132 76 90 188 254 96 172 . 202 113 18 86 . 170 70 507 48 68 32 159 195 56 105 256 34 64 151 108 12 499 114 Thermal 46 | 14 . . . . . . . . . . . . 3 . . . . . . . . . . . . . . . . . 3 15 . 11 Explosive 96 | . 6 . 2 . 2 . . . . . . . 3 1 . . 5 . 22 . . . . . . . . . . . . . 55 . Electromagnetic 281 | . 134 74 73 . . . . . . . . . . . . . . . . . . . . . . . . . . . . . . . Entropic 106 | . . . . . . . . . . . . . . . . . . . . . . . . . . . . . . . 91 . 15 . Robot Hit Streak 34 | 10 16 12 34 14 21 16 13 13 7 10 . 15 24 11 28 . 26 16 29 9 30 10 33 25 15 14 33 27 25 25 26 32 34 28 Robot Miss Streak 6 | 2 4 4 3 2 2 2 4 5 3 2 . 2 3 6 2 . 2 2 3 2 2 3 2 5 1 3 4 3 1 3 2 4 3 2 Penetration Max 2 | . . . . . 2 1 2 2 2 1 . 2 2 1 1 . 2 1 2 1 1 . 1 2 1 2 2 1 2 2 1 . 2 2 Secondary Targets 88 | . 4 1 9 1 . 1 4 . 3 1 . 3 . . 2 . 6 1 9 1 2 . 5 1 1 1 5 . 1 5 4 . 14 3 Max Gunslinging Chain 1 | . 1 1 1 1 . 1 1 . 1 1 . 1 . . 1 . 1 1 1 1 1 . 1 1 1 1 1 . 1 1 1 . 1 1 Shots Hit Robots 3215 | 17 136 46 318 73 69 64 110 98 51 55 . 85 69 14 69 . 136 52 300 30 54 23 100 143 51 82 190 27 45 100 148 21 340 99 Core Hits 2541 | 9 55 20 109 31 33 34 79 72 37 37 . 49 59 14 32 . 168 23 423 17 17 7 49 68 10 36 77 11 23 48 283 69 363 179 Critical Kills 558 | . 1 . . . 5 18 31 28 16 23 . 17 12 5 9 . 30 9 80 12 5 4 19 22 4 13 32 5 7 16 18 1 82 34 Critical Parts Destroyed 745 | . . . 2 . 8 22 34 26 20 21 . 36 16 2 19 . 25 18 117 11 13 5 22 40 1 24 48 8 16 24 22 2 99 44 Critical Strikes 1461 | . 1 1 2 . 16 42 66 55 37 44 . 54 28 7 28 . 61 30 207 23 29 11 51 67 32 37 92 15 23 42 77 6 190 87 Destroy 1418 | . 1 . 2 . 14 42 66 55 37 44 . 54 28 7 28 . 60 30 207 23 29 11 51 65 32 37 92 15 23 42 40 6 190 87 Corrupt 1 | . . 1 . . . . . . . . . . . . . . . . . . . . . . . . . . . . . . . . Sever 2 | . . . . . 2 . . . . . . . . . . . . . . . . . . . . . . . . . . . . . Impale 3 | . . . . . . . . . . . . . . . . . 1 . . . . . . 2 . . . . . . . . . . Sunder 37 | . . . . . . . . . . . . . . . . . . . . . . . . . . . . . . . 37 . . . Melee Attacks 110 | . . . 6 . 16 . . . . . . . . . . 2 21 . 29 . 3 . . 21 . 12 . . . . . . . . Impact . | . . . . . . . . . . . . . . . . . . . . . . . . . . . . . . . . . . . Slashing 22 | . . . 6 . 16 . . . . . . . . . . . . . . . . . . . . . . . . . . . . . Piercing 88 | . . . . . . . . . . . . . . . . 2 21 . 29 . 3 . . 21 . 12 . . . . . . . . Sneak Attacks 8 | . . . . . . . . . . . . . . . . . . . 3 . 1 . . 3 . 1 . . . . . . . . Combat Hostiles 1 | . . . . . . . . . . . . . . . . . . . 1 . . . . . . . . . . . . . . . Follow-up Attacks 1 | . . . . . 1 . . . . . . . . . . . . . . . . . . . . . . . . . . . . . Damage Inflicted 150639 | 175 2039 949 6153 1365 1599 1354 3091 2668 1588 1618 . 2516 2399 386 1410 . 5164 1152 16187 591 1168 415 2117 2145 1462 1831 3749 587 737 1430 42907 3511 27034 9142 Guns 65815 | 175 1884 682 4853 1365 1116 1354 2996 2668 1511 1611 . 2516 1545 238 1410 . 2094 1152 8182 591 1018 415 2117 1885 1462 1443 3749 587 737 1430 1653 343 7388 3645 Cannons 6411 | . . 78 802 . . . . . . . . . . . . . . . . . . . . . . . . . . . 5531 . . . Explosions 75966 | . 155 189 496 . 91 . 95 . 77 . . . 854 148 . . 2376 . 7595 . . . . . . . . . . . 35723 3168 19502 5497 Melee 2294 | . . . . . 392 . . . . . . . . . . . 694 . 410 . 150 . . 260 . 388 . . . . . . . . Ramming 153 | . . . 2 . . . . . . 7 . . . . . . . . . . . . . . . . . . . . . . 144 . Kinetic 63597 | 54 876 . 4805 1365 1116 1354 2996 2668 1511 1611 . 2516 1487 238 1410 . 2094 1152 8182 591 1018 415 2117 1885 1462 1443 3749 587 737 1430 1620 225 7388 3495 Thermal 12800 | 121 129 189 83 . . . 95 . . . . . 58 . . . . . 1281 . . . . . . . . . . . 1569 3286 342 5647 Explosive 21070 | . . . 413 . 91 . . . . . . . 776 148 . . 2376 . 6123 . . . . . . . . . . . . . 11143 . Electromagnetic 2990 | . 1034 760 850 . . . . . 77 . . . 78 . . . . . 191 . . . . . . . . . . . . . . . Impact . | . . . . . . . . . . . . . . . . . . . . . . . . . . . . . . . . . . . Slashing 392 | . . . . . 392 . . . . . . . . . . . . . . . . . . . . . . . . . . . . . Piercing 1902 | . . . . . . . . . . . . . . . . . 694 . 410 . 150 . . 260 . 388 . . . . . . . . Entropic 47735 | . . . . . . . . . . . . . . . . . . . . . . . . . . . . . . . 39718 . 8017 . Highest Corruption 18 | . . 1 4 4 4 . . 2 . . . 1 1 . . . . . 3 . . . . 1 18 18 1 1 2 2 2 . 6 12 Average Corruption 3 | . . 1 3 4 3 . . 1 . . . 1 1 . . . . . 2 . . . . 1 9 12 1 1 1 2 1 . 4 7 Corruption Purged 32 | . . . . . 4 . . 4 . . . 1 1 . . . . . 3 . . . . . . 18 . . . . 1 . . . Corruption Blocked 21 | . . . . . . . . . . . . . . . . . . . . . . . . . . . . . . . 21 . . . Effects 251 | . . 7 68 34 22 . . 1 . . . . 1 . . . . . 19 . . . . 2 4 6 3 . 2 6 7 . 37 32 Message Errors 68 | . . 2 10 10 5 . . . . . . . . . . . . . 4 . . . . 1 1 1 . . 1 1 3 . 16 13 Matter Fused 59 | . . 2 14 6 7 . . . . . . . . . . . . . 7 . . . . 1 2 1 3 . . 1 1 . 9 5 Heat Flow Errors 20 | . . 1 5 3 1 . . . . . . . 1 . . . . . . . . . . . . . . . . 1 3 . 1 4 Energy Discharges 27 | . . 1 7 5 2 . . . . . . . . . . . . . 3 . . . . . . . . . 1 1 . . 3 4 Parts Rejected 7 | . . . 4 . 1 . . . . . . . . . . . . . 1 . . . . . . . . . . . . . 1 . Parts Fused 3 | . . . 2 . . . . . . . . . . . . . . . . . . . . . . . . . . . . . 1 . Data Loss (minor) 34 | . . . 12 6 4 . . 1 . . . . . . . . . . 2 . . . . . . 2 . . . 1 . . 3 3 Data Loss (major) 9 | . . 1 3 . 2 . . . . . . . . . . . . . . . . . . . . 1 . . . . . . 2 . Misfires 10 | . . . 4 3 . . . . . . . . . . . . . . . . . . . . . 1 . . . . . . . 2 Alerts 3 | . . . 1 . . . . . . . . . . . . . . . 1 . . . . . 1 . . . . . . . . . Weapon Failures 11 | . . . 6 1 . . . . . . . . . . . . . . 1 . . . . . . . . . . 1 . . 1 1 Overload Shots . | . . . . . . . . . . . . . . . . . . . . . . . . . . . . . . . . . . . Overflow Damage 3879 | . . 15 35 . . . 20 . . . . . . . . . 49 . 395 . 74 . . . . 28 . . . . 2403 15 845 . Projectiles 494 | . . . 14 . . . . . . . . . . . . . . . . . . . . . . . . . . . 480 . . . Explosions 3151 | . . 15 21 . . . 20 . . . . . . . . . 49 . 337 . . . . . . . . . . . 1923 15 771 . Melee 234 | . . . . . . . . . . . . . . . . . . . 58 . 74 . . . . 28 . . . . . . 74 . Knockbacks 1 | . . . . . . . . . . . . . . . . . . . . . . . . . . . . . . . . . 1 . Impact 1 | . . . . . . . . . . . . . . . . . . . . . . . . . . . . . . . . . 1 . Kinetic . | . . . . . . . . . . . . . . . . . . . . . . . . . . . . . . . . . . . Secondary . | . . . . . . . . . . . . . . . . . . . . . . . . . . . . . . . . . . . Self-Inflicted Damage 1600 | . 96 57 20 . . . . . . 3 . . 79 . . . 193 . 135 . . . . . . . . . . . 61 154 309 493 Shots 58 | . 3 2 1 . . . . . . . . . 3 . . . 9 . 6 . . . . . . . . . . . 3 7 2 22 Rammed 5 | . . . 1 . . . . . . 1 . . . . . . . . . . . . . . . . . . . . . . 3 . Targets Rammed 5 | . . . 1 . . . . . . 1 . . . . . . . . . . . . . . . . . . . . . . 3 . Kicked . | . . . . . . . . . . . . . . . . . . . . . . . . . . . . . . . . . . . Crushed . | . . . . . . . . . . . . . . . . . . . . . . . . . . . . . . . . . . . Highest Temperature 439 | 40 173 261 439 220 223 276 160 139 10 33 . 170 374 42 68 . 300 41 330 162 342 301 312 359 326 311 333 42 126 126 191 315 88 241 Average Temperature 67 | 21 50 69 67 52 21 65 54 39 3 9 . 58 79 19 30 . 79 18 54 46 120 163 73 95 122 74 90 25 54 45 17 136 34 93 Received Heat Transfer 5900 | . 255 183 873 84 . 678 279 126 198 432 . 192 33 28 128 . 283 123 324 48 9 . 204 132 . 69 149 9 45 54 109 177 418 258 Effects 18 | . . . 3 . . . . . . . . . 3 . . . . . . . 2 . 3 3 . 1 . . . . . 3 . . Shutdowns 2 | . . . 1 . . . . . . . . . 1 . . . . . . . . . . . . . . . . . . . . . Energy Bleed 1 | . . . . . . . . . . . . . 1 . . . . . . . . . . . . . . . . . . . . . Interference 13 | . . . . . . . . . . . . . 1 . . . . . . . 2 . 3 3 . 1 . . . . . 3 . . Short Circuit 1 | . . . 1 . . . . . . . . . . . . . . . . . . . . . . . . . . . . . . . Damage (minor) 1 | . . . 1 . . . . . . . . . . . . . . . . . . . . . . . . . . . . . . . Siege Activations 2 | . . . . . . . . . . . . . . . . . . . . . . . . . . . . . . . . . . 2 Total Turns 93 | . . . . . . . . . . . . . . . . . . . . . . . . . . . . . . . . . . 93 Longest Duration 59 | . . . . . . . . . . . . . . . . . . . . . . . . . . . . . . . . . . 59 Robots Corrupted 1 | . . 1 . . . . . . . . . . . . . . . . . . . . . . . . . . . . . . . . Combat Hostiles . | . . . . . . . . . . . . . . . . . . . . . . . . . . . . . . . . . . . Parts Fried 21 | . 8 4 6 . . . . . 1 . . . . . . . . . 2 . . . . . . . . . . . . . . . Impact Corruptions 3 | . . . . . . . . . . . . . . . . . . . . . . . . . . . . . . . . . 3 . Robots Melted 3 | . . . . . . . . . . . . . . . . . . . . . . . . . . . . . . . . 1 . 2 Combat Hostiles 3 | . . . . . . . . . . . . . . . . . . . . . . . . . . . . . . . . 1 . 2 Parts Melted 58 | . . . . . . . . . . . . 1 . . . . 2 . . . . . . . . . 1 1 . . 4 16 . 33 Heat Transferred 16215 | 275 100 350 150 . . . 50 . . . . . 74 . . . . . 1050 . . . . . . . . . . . 1774 4573 500 7319 Parts Sabotaged 5 | . . . . . . . . . . . . . . . . . . . . . . . . . . . . . . . 2 . 2 1 Parts Stolen . | . . . . . . . . . . . . . . . . . . . . . . . . . . . . . . . . . . . Parts Stripped . | . . . . . . . . . . . . . . . . . . . . . . . . . . . . . . . . . . . Power Chain Reactions 10 | . 3 4 1 . . . . . 1 . . . . . . . . . 1 . . . . . . . . . . . . . . . Missiles Intercepted . | . . . . . . . . . . . . . . . . . . . . . . . . . . . . . . . . . . . Alert | -11 -10 -10 -9 -9 -9 -8 -8 -8 -8 -8 -8 -8 -7 -7 -7 -7 -7 -6 -6 -6 -6 -6 -5 -5 -5 -5 -5 -5 -5 -5 -5 -4 -4 -4 ------- Run | Jun Mat Min Mat Min Exi Min Mat Gar Mat Gar Mat Gar Fac Low Low Zio Dee Pro Fac Low Low Dat Pro Fac Was Fac Gar Fac Upp Upp War Pro Fac Ext Peak Influence 5680 | 40 555 382 1608 960 . 350 874 2335 1318 2019 984 1981 1500 . . . . . 5544 . . . . 693 287 605 1939 1200 . . . . 5680 4044 Initial 2783 | . 26 200 . 625 . . 81 566 1138 617 984 547 1039 . . . . . . . . . . 321 227 200 423 1017 . . . . 105 2783 Average 1299 | 21 310 184 687 760 . 242 633 1525 913 1441 877 1338 1134 . . . . . 2393 . . . . 375 268 277 1235 1096 . . . . 3068 2934 Maximum Alert Level 5 | . 2 1 5 3 . 1 3 5 4 5 3 5 4 . . . . . 5 . . . . 2 1 2 5 4 . . . . 5 5 Low Security (%) 12 | 100 33 59 15 . . 30 9 . . . . . . . . . . . 5 . . . . 22 . 10 . . . . . . 5 . Level 1 13 | . 31 40 18 . . 69 8 . 2 . . . . . . . . . . . . . . 29 100 72 . . . . . . 8 . Level 2 15 | . 34 . 22 21 . . 33 8 25 3 . 6 . . . . . . 17 . . . . 48 . 17 12 . . . . . 8 . Level 3 20 | . . . 20 78 . . 47 22 33 23 100 28 61 . . . . . 21 . . . . . . . 19 64 . . . . 5 . Level 4 11 | . . . 15 . . . . 19 38 24 . 27 38 . . . . . 7 . . . . . . . 50 35 . . . . 3 . Level 5 12 | . . . 7 . . . . 49 . 48 . 37 . . . . . . . . . . . . . . 17 . . . . . 14 41 High Security 13 | . . . . . . . . . . . . . . . . . . . 48 . . . . . . . . . . . . . 54 58 Max Security . | . . . . . . . . . . . . . . . . . . . . . . . . . . . . . . . . . . . Sterilizations 3 | . . . 1 . . . . . . . . . . . . . . . 1 . . . . . . . . . . . . . 1 . Squads Dispatched 162 | . 5 1 17 1 . 1 8 . 4 . . . 7 . . . . . 39 . . . . 7 . 3 . . . . . 1 44 24 Investigation 35 | . 4 1 8 1 . . 4 . 1 . . . 2 . . . . . 1 . . . . 5 . 1 . . . . . . 7 . Extermination 7 | . . . . . . . . . . . . . 1 . . . . . 2 . . . . 1 . . . . . . . . 3 . Reinforcement 22 | . 1 . 4 . . 1 2 . 2 . . . 1 . . . . . 2 . . . . . . 1 . . . . . . 7 1 Assault 90 | . . . 5 . . . 1 . . . . . 3 . . . . . 28 . . . . 1 . 1 . . . . . 1 27 23 Garrison 8 | . . . . . . . 1 . 1 . . . . . . . . . 6 . . . . . . . . . . . . . . . Intercept . | . . . . . . . . . . . . . . . . . . . . . . . . . . . . . . . . . . . Searches Triggered . | . . . . . . . . . . . . . . . . . . . . . . . . . . . . . . . . . . . Construction Impeded 5 | . . . 2 . . 1 . . 1 . . . . . . . . . 1 . . . . . . . . . . . . . . . Haulers Reinforced 1 | . . . . . . . . . . . . . . . . . . . 1 . . . . . . . . . . . . . . . Active Scanning Responses 5 | . . . . . . . . . . . . . . . . . . . . . . . . . . . . . . . . . 5 . Cargo Convoy Interrupts 1 | . . . . . . . . . . . . . . . . . . . . . . . . . . . . . . . . . 1 . Stealth | -11 -10 -10 -9 -9 -9 -8 -8 -8 -8 -8 -8 -8 -7 -7 -7 -7 -7 -6 -6 -6 -6 -6 -5 -5 -5 -5 -5 -5 -5 -5 -5 -4 -4 -4 --------- Run | Jun Mat Min Mat Min Exi Min Mat Gar Mat Gar Mat Gar Fac Low Low Zio Dee Pro Fac Low Low Dat Pro Fac Was Fac Gar Fac Upp Upp War Pro Fac Ext Distress Signals 12 | . 1 . 1 . . . 1 1 4 . . . . . . . . . . . . . . 1 . . . 1 . . . . . 2 Communications Jammed 33 | . . . . . . . . . . . . . 5 . . . . . 6 . . . . 9 . 1 . . . . . . 12 . Distress Signals 33 | . . . . . . . . . . . . . 5 . . . . . 6 . . . . 9 . 1 . . . . . . 12 . Times Spotted 1259 | . 32 3 87 16 22 15 47 39 22 29 . 28 22 7 14 . 48 11 174 8 8 4 26 29 6 20 35 4 13 22 199 22 156 91 Peak Tracking Total 30 | . 3 2 9 4 10 7 6 5 5 4 . 4 6 4 4 . 30 3 18 3 2 3 6 12 3 5 6 2 4 8 19 6 17 23 Tactical Retreats 91 | . 2 . 4 . 4 1 2 7 1 10 . 3 3 . . . 4 . 6 3 . . 4 2 1 . 2 . 1 4 5 . 13 9 Traps | -11 -10 -10 -9 -9 -9 -8 -8 -8 -8 -8 -8 -8 -7 -7 -7 -7 -7 -6 -6 -6 -6 -6 -5 -5 -5 -5 -5 -5 -5 -5 -5 -4 -4 -4 ------- Run | Jun Mat Min Mat Min Exi Min Mat Gar Mat Gar Mat Gar Fac Low Low Zio Dee Pro Fac Low Low Dat Pro Fac Was Fac Gar Fac Upp Upp War Pro Fac Ext Traps Triggered 23 | . . . 2 . . . . 3 . 7 . 3 1 . . . . . . . . . . 3 . . 4 . . . . . . . Indirectly 1 | . . . . . . . . . . . . . 1 . . . . . . . . . . . . . . . . . . . . . Trap Hack Attempts . | . . . . . . . . . . . . . . . . . . . . . . . . . . . . . . . . . . . Triggered . | . . . . . . . . . . . . . . . . . . . . . . . . . . . . . . . . . . . Disarmed . | . . . . . . . . . . . . . . . . . . . . . . . . . . . . . . . . . . . Reprogrammed 16 | . 8 . . . . . 8 . . . . . . . . . . . . . . . . . . . . . . . . . . . Reused 1 | . . . . . . . 1 . . . . . . . . . . . . . . . . . . . . . . . . . . . Traps Extracted . | . . . . . . . . . . . . . . . . . . . . . . . . . . . . . . . . . . . Installed . | . . . . . . . . . . . . . . . . . . . . . . . . . . . . . . . . . . . Triggered 44 | . . . 1 1 . . 1 . . . . . . . . . . . . 1 . . . . . . . . 2 . 38 . . . Exploded 3 | . . . . . 3 . . . . . . . . . . . . . . . . . . . . . . . . . . . . . Machines | -11 -10 -10 -9 -9 -9 -8 -8 -8 -8 -8 -8 -8 -7 -7 -7 -7 -7 -6 -6 -6 -6 -6 -5 -5 -5 -5 -5 -5 -5 -5 -5 -4 -4 -4 ---------- Run | Jun Mat Min Mat Min Exi Min Mat Gar Mat Gar Mat Gar Fac Low Low Zio Dee Pro Fac Low Low Dat Pro Fac Was Fac Gar Fac Upp Upp War Pro Fac Ext Machines Disabled 362 | . 22 4 45 2 13 . 10 17 6 10 . 12 12 . . . 4 5 122 . . 1 5 9 . 7 10 . . 2 . . 43 1 Max in Single Turn 21 | . 3 1 4 1 2 . 2 2 2 1 . 2 2 . . . 1 2 21 . . 1 1 1 . 2 2 . . 1 . . 4 1 Garrison Access 3 | . . . . . . . . . . . . . . . . . . . 1 . . . . 1 . . . . . . . . 1 . Garrison Relay 21 | . . . . . . . . 6 . 5 . 6 . . . . . . . . . . . . . . 4 . . . . . . . Phase Generator 1 | . . . . . . . . . . . . . . . . . . . . . . . . . . . 1 . . . . . . . Machines Repaired 2 | . 1 . 1 . . . . . . . . . . . . . . . . . . . . . . . . . . . . . . . Machines Sabotaged . | . . . . . . . . . . . . . . . . . . . . . . . . . . . . . . . . . . . Overloaded Fab Kills . | . . . . . . . . . . . . . . . . . . . . . . . . . . . . . . . . . . . Hacking | -11 -10 -10 -9 -9 -9 -8 -8 -8 -8 -8 -8 -8 -7 -7 -7 -7 -7 -6 -6 -6 -6 -6 -5 -5 -5 -5 -5 -5 -5 -5 -5 -4 -4 -4 --------- Run | Jun Mat Min Mat Min Exi Min Mat Gar Mat Gar Mat Gar Fac Low Low Zio Dee Pro Fac Low Low Dat Pro Fac Was Fac Gar Fac Upp Upp War Pro Fac Ext Machines Accessed 116 | . 8 3 13 1 . . 7 3 6 4 2 4 10 . 1 1 . . 5 . 1 4 1 9 . 5 2 3 1 1 4 . 11 6 Terminals 72 | . 6 1 10 . . . 6 3 4 4 1 4 5 . . . . . 4 . . . 1 5 . 3 2 . . 1 . . 6 6 Fabricators 9 | . . . . . . . . . . . . . 3 . . . . . . . . . . 1 . 1 . 1 . . . . 3 . Repair Stations . | . . . . . . . . . . . . . . . . . . . . . . . . . . . . . . . . . . . Recycling Units 12 | . 2 . 2 . . . . . 1 . . . 2 . . . . . . . . . . 2 . . . 1 . . . . 2 . Scanalyzers 4 | . . . 1 . . . . . . . . . . . . . . . 1 . . . . 1 . . . 1 . . . . . . Garrison Access 4 | . . . . . . . 1 . 1 . 1 . . . . . . . . . . . . . . 1 . . . . . . . . Total Hacks 590 | . 40 6 79 1 . . 35 9 36 12 9 13 32 . 1 6 . . 24 . 1 31 7 84 . 20 19 9 1 7 8 . 55 45 Successful 378 | . 25 3 61 1 . . 16 4 23 7 5 5 14 . 1 6 . . 13 . 1 31 7 50 . 11 9 9 1 7 8 . 39 21 Failed 210 | . 14 3 18 . . . 19 5 12 5 4 8 18 . . . . . 11 . . . . 34 . 9 10 . . . . . 16 24 Catastrophic 27 | . 1 1 1 . . . 3 1 . 1 . . 3 . . . . . . . . . . 6 . 2 1 . . . . . 1 6 Database Lockouts 2 | . 1 . . . . . . . 1 . . . . . . . . . . . . . . . . . . . . . . . . . Manual 257 | . 20 2 40 . 1 . 20 4 12 7 7 1 16 . . 5 . . 5 . . . . 41 . 8 17 6 . . 1 . 14 30 Terminals 428 | . 32 4 62 . . . 34 9 31 12 8 13 12 . . . . . 16 . . . 7 67 . 15 19 . . 7 . . 35 45 Fabricators 31 | . . . . . . . . . . . . . 12 . . . . . . . . . . 3 . 4 . 3 . . . . 9 . Repair Stations . | . . . . . . . . . . . . . . . . . . . . . . . . . . . . . . . . . . . Recycling Units 57 | . 8 . 12 . . . . . 4 . . . 8 . . . . . . . . . . 10 . . . 4 . . . . 11 . Scanalyzers 19 | . . . 5 . . . . . . . . . . . . . . . 8 . . . . 4 . . . 2 . . . . . . Garrison Access 4 | . . . . . . . 1 . 1 . 1 . . . . . . . . . . . . . . 1 . . . . . . . . Terminal Hacks 254 | . 16 3 34 1 . . 13 3 17 4 3 4 3 . 1 6 . . 6 . 1 31 7 32 . 7 7 . 1 7 8 . 21 18 Record 46 | . . . 5 . . . . . 2 . . . . . . . . . 1 . . 11 7 3 . . . . . 7 6 . 3 1 Part Schematic 24 | . . . . . . . . . . . . . . . . 6 . . . . . 11 . 1 . 2 . . . . . . 2 2 Robot Schematic 11 | . . . . . . . . . . . . . . . . . . . . . . 6 . 1 . . . . . . . . 3 1 Robot Analysis 24 | . 3 . 6 . . . 1 . . . . . . . . . . . 1 . . . . 10 . . . . . . . . 1 2 Prototype ID Bank 23 | . 5 . 4 . . . 1 . 2 . . . 1 . . . . . 1 . . 3 . 3 . 1 . . . . . . 1 1 Open Door 13 | . . 2 . 1 . . . 1 . 1 . 1 . . 1 . . . . . 1 . . . . . . . 1 . 2 . . 2 Open DSF 2 | . . . . . . . . . . . . . . . . . . . . . . . . . . 1 . . . . . . 1 . Level Access Points 2 | . 1 . . . . . . . . . . . . . . . . . . . . . . . . . . . . . . . 1 . Branch Access Points 7 | . . . 2 . . . . . . . . . 1 . . . . . . . . . . 1 . 1 . . . . . . 1 1 Emergency Access Points 10 | . . . 1 . . . 2 1 1 1 . 1 . . . . . . 1 . . . . 1 . . 1 . . . . . . . Machine Index 4 | . . . . . . . 1 . . . . . . . . . . . . . . . . 1 . 1 . . . . . . . 1 Terminal Index 1 | . . . 1 . . . . . . . . . . . . . . . . . . . . . . . . . . . . . . . Repair Station Index 1 | . . . 1 . . . . . . . . . . . . . . . . . . . . . . . . . . . . . . . Scanalyzer Index 1 | . . . . . . . . . . . . . . . . . . . . . . . . . . 1 . . . . . . . . Garrison Index 2 | . . . . . . . . . 1 . 1 . . . . . . . . . . . . . . . . . . . . . . . Alert Level 6 | . . . . . . . . . 1 . . . . . . . . . . . . . . 2 . . . . . . . . 2 1 Unreport Threat 26 | . 1 . 4 . . . 3 . 6 . 1 . . . . . . . . . . . . 4 . . . . . . . . 4 3 Locate Traps 5 | . . . . . . . . . . . . . . . . . . . . . . . . . . . 4 . . . . . 1 . Reprogram Traps 7 | . 2 . 1 . . . 2 . 1 . . . . . . . . . . . . . . . . . 1 . . . . . . . Dispatch Records 2 | . . 1 1 . . . . . . . . . . . . . . . . . . . . . . . . . . . . . . . Maintenance Status 1 | . . . 1 . . . . . . . . . . . . . . . . . . . . . . . . . . . . . . . Transport Status 1 | . . . . . . . . . . . . . . . . . . . . . . . . . . . . . . . . . . 1 Investigation Status 1 | . . . 1 . . . . . . . . . . . . . . . . . . . . . . . . . . . . . . . Recall Investigation 1 | . . . 1 . . . . . . . . . . . . . . . . . . . . . . . . . . . . . . . Hauler Manifests 5 | . 1 . 1 . . . . . 1 . . . . . . . . . . . . . . 1 . . . . . . . . . 1 Registered Components 5 | . 1 . 1 . . . 1 . . . . . . . . . . . . . . . . 1 . . . . . . . . . 1 Registered Prototypes 4 | . . . . . . . . . 1 . . . . . . . . . 1 . . . . 1 . . . . . . . . 1 . Zone Layout 13 | . 2 . 3 . . . 2 . 1 . 1 . 1 . . . . . 1 . . . . 2 . . . . . . . . . . Garrison Registry 3 | . . . . . . . . 1 . 1 . 1 . . . . . . . . . . . . . . . . . . . . . . Patrol Navigation 3 | . . . . . . . . . . 1 . 1 . . . . . . . . . . . . . . 1 . . . . . . . Fabricator Hacks 11 | . . . . . . . . . . . . . 4 . . . . . . . . . . . . 1 . 1 . . . . 5 . Network Status 5 | . . . . . . . . . . . . . 3 . . . . . . . . . . . . 1 . 1 . . . . . . Load Schematic 2 | . . . . . . . . . . . . . . . . . . . . . . . . . . . . . . . . . 2 . Build 4 | . . . . . . . . . . . . . 1 . . . . . . . . . . . . . . . . . . . 3 . Repair Station Hacks . | . . . . . . . . . . . . . . . . . . . . . . . . . . . . . . . . . . . Recycling Unit Hacks 12 | . 1 . 3 . . . . . . . . . 2 . . . . . . . . . . 2 . . . 1 . . . . 3 . Report Inventory 10 | . 1 . 2 . . . . . . . . . 2 . . . . . . . . . . 2 . . . 1 . . . . 2 . Retrieve Matter 2 | . . . 1 . . . . . . . . . . . . . . . . . . . . . . . . . . . . . 1 . Scanalyzer 15 | . . . 5 . . . . . . . . . . . . . . . 6 . . . . 2 . . . 2 . . . . . . Insert Component 8 | . . . 3 . . . . . . . . . . . . . . . 3 . . . . 1 . . . 1 . . . . . . Analyze 7 | . . . 2 . . . . . . . . . . . . . . . 3 . . . . 1 . . . 1 . . . . . . Garrison Access Hacks 4 | . . . . . . . 1 . 1 . 1 . . . . . . . . . . . . . . 1 . . . . . . . . Unlock Access 4 | . . . . . . . 1 . 1 . 1 . . . . . . . . . . . . . . 1 . . . . . . . . Unauthorized Hacks 82 | . 8 . 19 . . . 2 1 5 3 1 1 5 . . . . . 1 . . . . 14 . 2 2 5 . . . . 10 3 Terminals 35 | . 3 . 12 . . . 2 1 2 3 1 1 . . . . . . 1 . . . . 3 . . 2 . . . . . 1 3 Botnet 22 | . 2 . 5 . . . 2 . 2 1 1 . . . . . . . 1 . . . . 3 . . 1 . . . . . 1 3 Detonate 1 | . . . 1 . . . . . . . . . . . . . . . . . . . . . . . . . . . . . . . Disrupt 1 | . . . 1 . . . . . . . . . . . . . . . . . . . . . . . . . . . . . . . Sabotage 2 | . 1 . 1 . . . . . . . . . . . . . . . . . . . . . . . . . . . . . . . Search 4 | . . . 4 . . . . . . . . . . . . . . . . . . . . . . . . . . . . . . . Override 5 | . . . . . . . . 1 . 2 . 1 . . . . . . . . . . . . . . 1 . . . . . . . Fabricators 12 | . . . . . . . . . . . . . 3 . . . . . . . . . . 2 . 2 . 2 . . . . 3 . Report 4 | . . . . . . . . . . . . . 1 . . . . . . . . . . 1 . 1 . 1 . . . . . . Fabnet 7 | . . . . . . . . . . . . . 2 . . . . . . . . . . 1 . 1 . 1 . . . . 2 . Haulers 1 | . . . . . . . . . . . . . . . . . . . . . . . . . . . . . . . . . 1 . Repair Stations . | . . . . . . . . . . . . . . . . . . . . . . . . . . . . . . . . . . . Recycling Units 34 | . 5 . 7 . . . . . 3 . . . 2 . . . . . . . . . . 8 . . . 3 . . . . 6 . Monitor 7 | . 1 . 1 . . . . . . . . . . . . . . . . . . . . 2 . . . 1 . . . . 2 . Reject 10 | . 1 . 2 . . . . . 1 . . . 1 . . . . . . . . . . 2 . . . 1 . . . . 2 . Mask 10 | . 1 . 2 . . . . . 1 . . . 1 . . . . . . . . . . 2 . . . 1 . . . . 2 . Tunnel 7 | . 2 . 2 . . . . . 1 . . . . . . . . . . . . . . 2 . . . . . . . . . . Scanalyzers 1 | . . . . . . . . . . . . . . . . . . . . . . . . 1 . . . . . . . . . . Extract 1 | . . . . . . . . . . . . . . . . . . . . . . . . 1 . . . . . . . . . . Garrison Access . | . . . . . . . . . . . . . . . . . . . . . . . . . . . . . . . . . . . Data Cores Recovered 5 | . . . . . . . 1 . . . . . 1 . . . . . 1 . . . . 2 . . . . . . . . . . Used 1 | . . . . . . . . . . . . . . . . . . . . . . . . 1 . . . . . . . . . . Hacking Detections 73 | . 7 1 11 . . . 7 2 4 3 1 2 7 . . . . . 4 . . . 1 7 . 2 . . . 1 . . 9 4 Full Trace Events 22 | . 3 1 3 . . . 5 1 . . . 1 2 . . . . . 1 . . . . 2 . 1 . . . . . . 2 . Feedback Events 3 | . . 1 . . . . . . . . . . 1 . . . . . 1 . . . . . . . . . . . . . . . Corruption 3 | . . 1 . . . . . . . . . . 1 . . . . . 1 . . . . . . . . . . . . . . . Feedback Blocked . | . . . . . . . . . . . . . . . . . . . . . . . . . . . . . . . . . . . Robot Schematics Acquired 15 | . . . . . . . . . . . . . . . . 4 . . . . . 6 . 1 . . . . . . . . 3 1 Robots Built 1 | . . . . . . . . . . . . . . . . . . . . . . . . . . . . . . . . . 1 . Authchips . | . . . . . . . . . . . . . . . . . . . . . . . . . . . . . . . . . . . Time 187 | . . . . . . . . . . . . . . . . . . . . . . . . . . . . . . . . . 187 . Total Robot Build Rating 7 | . . . . . . . . . . . . . . . . . . . . . . . . . . . . . . . . . 7 . Part Schematics Acquired 49 | . . . 2 . . . . . . . . . . . . 21 . . 3 . . 11 . 5 . 2 . 1 . . . . 2 2 Parts Built 5 | . . . . . . . . . . . . . 2 . . . . . . . . . . . . . . . . . . . 3 . Authchips . | . . . . . . . . . . . . . . . . . . . . . . . . . . . . . . . . . . . Time 167 | . . . . . . . . . . . . . 39 . . . . . . . . . . . . . . . . . . . 128 . Total Part Build Rating 38 | . . . . . . . . . . . . . 14 . . . . . . . . . . . . . . . . . . . 24 . Parts Repaired . | . . . . . . . . . . . . . . . . . . . . . . . . . . . . . . . . . . . Time . | . . . . . . . . . . . . . . . . . . . . . . . . . . . . . . . . . . . Parts Recycled . | . . . . . . . . . . . . . . . . . . . . . . . . . . . . . . . . . . . Recycled Matter . | . . . . . . . . . . . . . . . . . . . . . . . . . . . . . . . . . . . Retrieved Matter 339 | . . . 240 . . . . . . . . . . . . . . . . . . . . . . . . . . . . . 99 . Retrieved Components . | . . . . . . . . . . . . . . . . . . . . . . . . . . . . . . . . . . . Parts Scanalyzed 7 | . . . 2 . . . . . . . . . . . . . . . 3 . . . . 1 . . . 1 . . . . . . Part Schematics Acquired 7 | . . . 2 . . . . . . . . . . . . . . . 3 . . . . 1 . . . 1 . . . . . . Parts Damaged . | . . . . . . . . . . . . . . . . . . . . . . . . . . . . . . . . . . . Bothacking | -11 -10 -10 -9 -9 -9 -8 -8 -8 -8 -8 -8 -8 -7 -7 -7 -7 -7 -6 -6 -6 -6 -6 -5 -5 -5 -5 -5 -5 -5 -5 -5 -4 -4 -4 ------------ Run | Jun Mat Min Mat Min Exi Min Mat Gar Mat Gar Mat Gar Fac Low Low Zio Dee Pro Fac Low Low Dat Pro Fac Was Fac Gar Fac Upp Upp War Pro Fac Ext Used RIF Installer . | . . . . . . . . . . . . . . . . . . . . . . . . . . . . . . . . . . . Robots Hacked 51 | . . . . . . . . . . . . . . . . . . 1 7 . . . . 1 . . . . . 1 6 2 18 15 Non-combat . | . . . . . . . . . . . . . . . . . . . . . . . . . . . . . . . . . . . Combat 51 | . . . . . . . . . . . . . . . . . . 1 7 . . . . 1 . . . . . 1 6 2 18 15 Robot Hacks Applied . | . . . . . . . . . . . . . . . . . . . . . . . . . . . . . . . . . . . Relay Couplers Released 39 | . . . . . . . . 12 . 9 . 10 . . . . . . . . . . . 1 . . 7 . . . . . . . Machine Destruction 37 | . . . . . . . . 10 . 9 . 10 . . . . . . . . . . . 1 . . 7 . . . . . . . Programmers 2 | . . . . . . . . 2 . . . . . . . . . . . . . . . . . . . . . . . . . . Fabnet Peak Effective % 9 | . . . . . . . . . . . . . . . . . . 6 6 6 6 6 2 2 2 2 2 2 2 2 2 9 9 9 Autooverrided 51 | . . . . . . . . . . . . . . . . . . 1 7 . . . . 1 . . . . . 1 6 2 18 15 Robots Rewired 20 | . . . . . . . . 5 . . . 2 . . . . . . . . . . . . . . . . . . . 2 . 11 Allies Hacked . | . . . . . . . . . . . . . . . . . . . . . . . . . . . . . . . . . . . Hacks Repelled . | . . . . . . . . . . . . . . . . . . . . . . . . . . . . . . . . . . . Allies | -11 -10 -10 -9 -9 -9 -8 -8 -8 -8 -8 -8 -8 -7 -7 -7 -7 -7 -6 -6 -6 -6 -6 -5 -5 -5 -5 -5 -5 -5 -5 -5 -4 -4 -4 -------- Run | Jun Mat Min Mat Min Exi Min Mat Gar Mat Gar Mat Gar Fac Low Low Zio Dee Pro Fac Low Low Dat Pro Fac Was Fac Gar Fac Upp Upp War Pro Fac Ext Total Allies 88 | . . 4 . 2 . . . 7 . 1 . 2 . . . 4 . 1 7 . . . . 1 . . . . . 1 6 4 19 29 Largest Group 8 | . . 3 3 2 . . . 5 5 1 1 2 . . . 4 4 1 1 . . . . 1 . . . . . 1 1 4 2 8 Highest-Rated Group 359 | . . 40 40 41 . . . 80 80 31 31 70 . . . 126 126 12 37 . . . . 49 . . . . . 29 56 135 184 359 Highest-Rated Ally 137 | . . 31 16 31 . . . 31 16 31 31 39 . . . 39 39 12 37 . . . . 49 . . . . . 29 56 49 137 58 Total Orders 2 | . . . . . . . . . . . . . . . . . . . . . . . . . . . . . . . 1 . 1 . EXPLORE 2 | . . . . . . . . . . . . . . . . . . . . . . . . . . . . . . . 1 . 1 . Ally Attacks 207 | . . . 15 . . . . 8 22 1 . 26 . . . . 24 3 11 . . . . . . . . . . 3 7 . 19 68 Total Damage 7733 | . . . 193 . . . . 196 258 22 . 431 . . . . 2046 43 241 . . . . . . . . . . 39 110 . 860 3294 Kills 42 | . . . 1 . . . . 1 5 1 . 3 . . . . 4 . . . . . . . . . . . . . 1 . 5 21 Allies Corrupted 3 | . . . 1 . . . . . . . . . . . . . . . . . . . . . . . . . . . 1 . . 1 Allies Melted 1 | . . . . . . . . . . . . . . . . . . . . . . . . . . . . . . . 1 . . . Fabricated Assembled 1 | . . . . . . . . . . . . . . . . . . . . . . . . . . . . . . . 1 . . . Intel | -11 -10 -10 -9 -9 -9 -8 -8 -8 -8 -8 -8 -8 -7 -7 -7 -7 -7 -6 -6 -6 -6 -6 -5 -5 -5 -5 -5 -5 -5 -5 -5 -4 -4 -4 ------- Run | Jun Mat Min Mat Min Exi Min Mat Gar Mat Gar Mat Gar Fac Low Low Zio Dee Pro Fac Low Low Dat Pro Fac Was Fac Gar Fac Upp Upp War Pro Fac Ext Robot Analysis Total 23 | . 2 . 6 . . . 1 . . . . . . . . . . . 1 . . . . 10 . . . . . . . . 1 2 Derelict Logs Recovered 19 | . . 2 . 2 . . . . . . . . . 2 1 1 . 2 . 2 2 . 1 . . . . . 2 . . 2 . . Drone Launches 12 | . . . . . . . . . . . . . . . . . . . . . . . . . . . . . . . 10 . 2 . Drone Recoveries . | . . . . . . . . . . . . . . . . . . . . . . . . . . . . . . . . . . . Exploration | -11 -10 -10 -9 -9 -9 -8 -8 -8 -8 -8 -8 -8 -7 -7 -7 -7 -7 -6 -6 -6 -6 -6 -5 -5 -5 -5 -5 -5 -5 -5 -5 -4 -4 -4 ------------- Run | Jun Mat Min Mat Min Exi Min Mat Gar Mat Gar Mat Gar Fac Low Low Zio Dee Pro Fac Low Low Dat Pro Fac Was Fac Gar Fac Upp Upp War Pro Fac Ext Turns Passed 42675 | 126 2599 1267 3804 1359 1214 533 694 1474 313 1415 32 1355 1248 503 2045 1820 3909 2185 2777 325 402 197 568 760 121 637 786 158 291 385 2670 952 2790 961 Spaces Moved 30059 | 19 1203 618 1550 814 867 151 348 680 134 766 23 761 651 307 1301 1256 1279 751 2483 885 1193 152 1157 977 207 564 679 313 1038 959 1897 957 2847 272 Core 8 | . 3 . 3 1 . . . . . . . . . . . . . . . . . 1 . . . . . . . . . . . . Treads 3736 | . 583 618 1547 446 . . . . . . . . . . . . . . . . . . . . . . . . . . . . 270 272 Legs 19 | 18 . . . . . . . . . . . . . . . . 1 . . . . . . . . . . . . . . . . . Wheels 8324 | 1 617 . . 367 867 151 348 680 134 766 23 761 651 307 1301 1256 94 . . . . . . . . . . . . . . . . . Hover 17972 | . . . . . . . . . . . . . . . . . 1184 751 2483 885 1193 151 1157 977 207 564 679 313 1038 959 1897 957 2577 . Flight . | . . . . . . . . . . . . . . . . . . . . . . . . . . . . . . . . . . . Fastest Speed 18 | 100 90 160 160 100 100 115 115 115 130 130 130 130 130 145 145 130 56 266 22 22 22 22 22 22 22 22 22 22 22 22 18 81 19 180 Average Speed 93 | 118 129 160 162 140 106 119 115 121 130 130 130 130 140 145 145 137 255 266 48 22 22 32 24 38 22 28 24 22 22 22 69 86 41 180 Slowest Speed 1075 | 120 250 160 300 500 130 130 130 130 130 130 130 130 145 145 145 160 550 266 266 22 22 1075 92 92 22 94 92 22 22 22 82 99 180 180 Overloaded Moves 1088 | . . . . . . . . . . . . . . . . . . . . . . . . . . . . . . . 341 . 747 . Propulsion Burnouts . | . . . . . . . . . . . . . . . . . . . . . . . . . . . . . . . . . . . Robots Hopped . | . . . . . . . . . . . . . . . . . . . . . . . . . . . . . . . . . . . Cave-ins Triggered . | . . . . . . . . . . . . . . . . . . . . . . . . . . . . . . . . . . . Exploration Rate (%) 68 | 3 97 97 97 97 86 22 41 81 22 90 4 82 24 56 98 86 79 93 74 95 98 82 98 31 84 14 85 11 97 94 97 97 64 28 Regions Visited 34 Branch Regions 18 Pre-discovered Areas 19 | . 2 1 2 1 . . . . 1 . . . . 3 . 2 . 1 . . 2 1 . 2 . . . . . 1 . . . . Known Exits Taken 14 | . . 1 1 . . . 1 . 1 . 1 . 1 . . . . . 1 1 1 . 1 . . 1 . 1 . . . 1 1 . Unknown Exits Taken 14 | 1 1 . . 1 1 1 . . . . . . . 1 1 1 1 1 . . . 1 . . . . . . 1 1 1 . . . Scrap Searched 33 | . . 2 . 1 . . . . . . . . . 2 2 2 . 5 . 6 2 . 4 . . . . . 1 3 . 3 . . Spaces Dug 416 | . . . 1 . . . 1 5 60 9 . 4 39 . . . 6 3 93 . . . 4 6 . 4 1 . . 3 2 . 175 . Terrain Destroyed 3215 | . 125 39 297 11 22 56 103 44 97 57 . 42 74 18 22 . 18 9 672 7 8 1 17 14 2 16 188 5 6 10 302 1 901 31 Melee 16 | . . . 1 . . . . . . . . . . . . . . . 6 . . . . 5 . 4 . . . . . . . . Projectile 529 | . . . . 1 2 55 65 34 43 54 . 36 5 . 18 . 5 5 20 7 5 1 10 2 2 8 31 3 2 3 47 . 49 16 AOE 2532 | . 125 39 296 10 20 . 35 . 53 . . . 62 17 . . . . 630 . . . . . . . 150 . . . 253 . 829 13 Terrain Rammed . | . . . . . . . . . . . . . . . . . . . . . . . . . . . . . . . . . . . Walls Destroyed . | . . . . . . . . . . . . . . . . . . . . . . . . . . . . . . . . . . . Machines Disabled . | . . . . . . . . . . . . . . . . . . . . . . . . . . . . . . . . . . . Actions | -11 -10 -10 -9 -9 -9 -8 -8 -8 -8 -8 -8 -8 -7 -7 -7 -7 -7 -6 -6 -6 -6 -6 -5 -5 -5 -5 -5 -5 -5 -5 -5 -4 -4 -4 --------- Run | Jun Mat Min Mat Min Exi Min Mat Gar Mat Gar Mat Gar Fac Low Low Zio Dee Pro Fac Low Low Dat Pro Fac Was Fac Gar Fac Upp Upp War Pro Fac Ext Total 40679 | 95 1948 824 2415 980 1101 426 524 1173 214 1077 25 1001 906 352 1406 1354 1720 869 3653 984 1285 277 1339 1236 247 968 1146 380 1072 1070 3053 1038 3908 613 Wait 5601 | 58 505 132 429 76 67 176 21 222 11 130 2 80 175 28 46 33 157 58 751 52 35 86 77 135 10 311 247 44 9 63 756 25 445 149 Move 30026 | 18 1202 617 1549 813 866 150 348 679 134 765 23 758 650 306 1300 1255 1278 750 2482 884 1192 151 1156 976 206 563 678 312 1037 958 1896 956 2846 272 Hop . | . . . . . . . . . . . . . . . . . . . . . . . . . . . . . . . . . . . Pick Up 154 | . 4 5 11 5 24 . 4 . . . . . . . . 21 21 . 6 . 1 2 1 1 1 2 1 . . . 27 . 13 4 Fast Attach 232 | 4 16 2 16 3 12 13 2 12 1 1 . 4 6 1 . 5 23 . 9 1 . 7 2 . . 9 5 . . . 44 1 30 3 Attach 101 | . . 2 2 2 11 . 4 3 . . . . . . . 13 12 . 9 . 1 . 1 1 . . . . . . 21 1 12 6 Detach 50 | . 1 . 2 1 9 3 1 3 . . . . 1 . . 3 4 . 4 . . . . . . 1 . . . . 5 1 10 1 Swap 52 | . 6 . 8 2 4 1 . 1 . . . . . . . . 5 . 4 1 . 3 1 3 . 1 . . . . 6 . 6 . Drop 334 | 1 16 6 16 8 33 10 4 10 1 1 . 4 4 1 . 22 41 . 11 1 1 9 2 1 2 8 3 . . . 72 1 39 6 Fire 2622 | 14 170 37 271 44 48 45 94 128 47 86 . 101 60 10 43 . 90 35 275 24 34 16 78 56 28 40 117 16 18 38 122 27 325 85 Melee 109 | . . . 6 . 15 . . . . . . . . . . 2 21 . 29 . 3 . . 21 . 12 . . . . . . . . Ram 4 | . . . . . . . . . . 1 . . . . . . . . . . . . . . . . . . . . . . 3 . Kick . | . . . . . . . . . . . . . . . . . . . . . . . . . . . . . . . . . . . Crush 1 | . . . 1 . . . . . . . . . . . . . . . . . . . . . . . . . . . . . . . Escape Stasis 135 | . . . . . . . . 23 . 48 . 16 . . . . . . . . . . . 14 . . 34 . . . . . . . Rewire 89 | . . . . . . . . 26 . . . 5 . . . . . . . . . . . . . . . . . . 9 4 . 45 Trap . | . . . . . . . . . . . . . . . . . . . . . . . . . . . . . . . . . . . Miscellaneous 1169 | . 28 23 104 26 12 28 46 66 20 45 . 33 10 6 17 . 68 26 73 21 18 3 21 28 . 21 61 8 8 11 95 22 179 42 Route ------- -11/Junkyard -10/Materials (discovered 4 exits: *Mat x3 / *Min) -10/Mines (discovered 2 exits: *Mat x2) -9/Materials (discovered 4 exits: *Mat x3 / *Min) -9/Mines (discovered 3 exits: *Mat x2 / *Exi) -9/Exiles -8/Mines -8/Materials (discovered 4 exits: *Fac x2 / Sto / Gar) -8/Garrison (discovered 3 exits: *Mat x3) -8/Materials (discovered 3 exits: *Fac / *Sto / Gar) -8/Garrison (discovered 3 exits: *Mat x3) -8/Materials -8/Garrison (discovered 3 exits: *Fac x3) -7/Factory (discovered 2 exits: *Low x2) -7/Lower Caves -7/Lower Caves (discovered 2 exits: *Fac / *Zio) -7/Zion (discovered 2 exits: [*Dee] / [*Pro]) -7/Deep Caves -6/Proximity Caves -6/Factory (discovered 5 exits: *Fac x3 / *Low x2) -6/Lower Caves (discovered 2 exits: *Low / *Dat) -6/Lower Caves (discovered 2 exits: *Fac / *Dat) -6/Data Miner -5/Proximity Caves -5/Factory (discovered 6 exits: *Fac x4 / Upp x2) -5/Waste -5/Factory (discovered 3 exits: Upp x2 / Gar) -5/Garrison (discovered 3 exits: *Fac x3) -5/Factory -5/Upper Caves -5/Upper Caves -5/Warlord -4/Proximity Caves -4/Factory (discovered 8 exits: *Res x4 / *Upp x2 / *Ext x2) -4/Extension (discovered 1 exit: Cet) History --------- Turn | Location | Event 6 | -11/Junkyard | Upgraded with Utility slot (x3) 6 | -11/Junkyard | Upgraded with Weapon slot (x1) 58 | -11/Junkyard | Discovered new exit (range 2) 127 | -11/Junkyard | Entered Materials 313 | -10/Materials | Build established: Mutant 638 | -10/Materials | Discovered new exit (range 16) 892 | -10/Materials | Build established: Scavenger-Skirmisher 1007 | -10/Materials | Reached level 2 1192 | -10/Materials | Central database locked down 1207 | -10/Materials | Discovered new exit (range 14) 1226 | -10/Materials | Identified exit to Materials 1322 | -10/Materials | Build established: Hacker-Skirmisher 1401 | -10/Materials | Reached level 3 1418 | -10/Materials | Upgraded with Utility slot (x1) 2179 | -10/Materials | Reached level 4 2188 | -10/Materials | Upgraded with Propulsion slot (x1) 2726 | -10/Materials | Entered Mines 2755 | -10/Mines | Build established: Hacker-Mutant 2762 | -10/Mines | Met a Derelict bent on vengeance 2924 | -10/Mines | Discovered exit to Materials (range 9) 3255 | -10/Mines | Received a Mining Laser from a helpful Derelict 3457 | -10/Mines | Met a Derelict who couldn't figure out how to use a Trap Extractor 3531 | -10/Mines | Assisted by bots powering up and referring to "LRC-V3" 3540 | -10/Mines | Learned Materials emergency access door positions 3829 | -10/Mines | Reached level 5 3875 | -10/Mines | Upgraded with Utility slot (x1) 3876 | -10/Mines | Found the Drone Emporium 3887 | -10/Mines | Found Prototype Device 3963 | -10/Mines | Discovered exit to Materials (range 16) 3993 | -10/Mines | Entered Materials 3993 | -9/Materials | Accompanied by 3 allies 3995 | -9/Materials | Reached level 6 4372 | -9/Materials | Discovered new exit (range 9) 4586 | -9/Materials | Reached level 7 4768 | -9/Materials | Identified Sensor Drone Bay 4987 | -9/Materials | Identified exit to Mines 5231 | -9/Materials | Reached level 8 5233 | -9/Materials | Upgraded with Utility slot (x1) 5334 | -9/Materials | Discovered new exit (range 8) 5539 | -9/Materials | Core integrity fell below 50% 5573 | -9/Materials | Core integrity fell below 20% 5707 | -9/Materials | Reached level 9 5983 | -9/Materials | Discovered new exit (range 3) 6393 | -9/Materials | First assault squad dispatched 6479 | -9/Materials | Reached level 10 6514 | -9/Materials | Destroyed 8 combat bots 6568 | -9/Materials | Upgraded with Power slot (x1) 6568 | -9/Materials | Upgraded with Weapon slot (x1) 7352 | -9/Materials | Sterilization system engaged 7352 | -9/Materials | Non-combat units ordered to evacuate 7360 | -9/Materials | Destroyed 9 combat bots 7452 | -9/Materials | Combat units ordered to evacuate 7652 | -9/Materials | Ambient heat levels rising (+10) 7797 | -9/Materials | Entered Mines 7803 | -9/Mines | Reached level 11 7920 | -9/Mines | Met a Derelict shopkeep closing up shop 7985 | -9/Mines | Excavation squad dispatched 7985 | -9/Mines | A large section of the Mines collapsed 8059 | -9/Mines | Discovered new exit (range 4) 8097 | -9/Mines | Build established: Hacker-Gunner 8200 | -9/Mines | Received a Rocket Launcher from a helpful Derelict 8314 | -9/Mines | Learned location of 1 exit from Materials 8439 | -9/Mines | Discovered new exit (range 9) 8449 | -9/Mines | Learned location of Storage (-8) 8702 | -9/Mines | Learned Materials emergency access door positions 9152 | -9/Mines | Deemed a non-threat by the Exiles lab entrance 9152 | -9/Mines | Discovered new exit (range 5) 9156 | -9/Mines | Entered Exiles 9206 | -9/Exiles | Met 8R-AWN 9223 | -9/Exiles | Met EX-HEX 9253 | -9/Exiles | Met EX-BIN 9264 | -9/Exiles | Aligned with FarCom system 9265 | -9/Exiles | Given EX-Vault access code 9400 | -9/Exiles | Met EX-DEC 9457 | -9/Exiles | Build established: Hacker-Mutant 9628 | -9/Exiles | Opened EX-Vault 9634 | -9/Exiles | Found Prototype Energy Gun 9641 | -9/Exiles | Found Prototype Processor 9665 | -9/Exiles | Warned to stay clear of 0b10 Research branches 9790 | -9/Exiles | Attacked by the Exiles 9903 | -9/Exiles | Found Prototype Ballistic Gun 9961 | -9/Exiles | Destroyed 8R-AWN 9965 | -9/Exiles | Found Prototype Processor 9965 | -9/Exiles | Identified Exp. Targeting Computer 9976 | -9/Exiles | Found Prototype Protection 9976 | -9/Exiles | Identified 8R-AWN's Armor/EX 9981 | -9/Exiles | Found Prototype Protection 9981 | -9/Exiles | Identified 8R-AWN's Armor/TH 9994 | -9/Exiles | Found Prototype Device 9994 | -9/Exiles | Identified AS-neutralizer No. 17b 10008 | -9/Exiles | Identified 8R-AWN's Boregun 10009 | -9/Exiles | Found 8R-AWN's Boregun 10118 | -9/Exiles | Destroyed EX-BIN 10147 | -9/Exiles | Destroyed EX-DEC 10177 | -9/Exiles | Found Prototype Device 10177 | -9/Exiles | Identified System Purifier 10190 | -9/Exiles | Found Prototype Processor 10190 | -9/Exiles | Identified Exp. Core Analyzer 10194 | -9/Exiles | Destroyed EX-HEX 10355 | -9/Exiles | Discovered new exit (range 14) 10369 | -9/Exiles | Build established: Scavenger-Mutant 10370 | -9/Exiles | Entered Mines 10444 | -8/Mines | Reached level 12 10465 | -8/Mines | AD-0RF came to Exiles' defense 10468 | -8/Mines | Destroyed 10 combat bots 10499 | -8/Mines | Destroyed AD-0RF 10561 | -8/Mines | Found Prototype Device 10561 | -8/Mines | Identified Exp. Thermal Shield 10577 | -8/Mines | Found Exp. Targeting Computer 10881 | -8/Mines | Discovered new exit (range 13) 10903 | -8/Mines | Entered Materials 10904 | -8/Materials | Identified exit to Storage 11018 | -8/Materials | Reached level 13 11067 | -8/Materials | Destroyed 8 combat bots 11129 | -8/Materials | Discovered new exit (range 3) 11303 | -8/Materials | First assault squad dispatched 11438 | -8/Materials | Discovered new exit (range 15) 11443 | -8/Materials | Destroyed 9 combat bots 11456 | -8/Materials | Identified exit to Factory 11509 | -8/Materials | Garrison activated, responded to threat 11531 | -8/Materials | Reached level 14 11565 | -8/Materials | Destroyed 8 combat bots 11597 | -8/Materials | Identified exit to Garrison 11597 | -8/Materials | Entered Garrison 11630 | -8/Garrison | Triggered checkpoint 11716 | -8/Garrison | Triggered checkpoint 11737 | -8/Garrison | Garrison Relay disabled 11842 | -8/Garrison | Triggered checkpoint 11930 | -8/Garrison | Triggered checkpoint 11989 | -8/Garrison | Discovered new exit (range 12) 11994 | -8/Garrison | Discovered new exit (range 16) 11994 | -8/Garrison | Discovered new exit (range 46) 11994 | -8/Garrison | Discovered new exit (range 57) 11994 | -8/Garrison | Identified exit to Materials 12016 | -8/Garrison | Triggered checkpoint 12064 | -8/Garrison | Garrison Relay disabled 12212 | -8/Garrison | Triggered checkpoint 12212 | -8/Garrison | Upgraded with Utility slot (x1) 12397 | -8/Garrison | Rescued a captive Derelict 12399 | -8/Garrison | Rescued a captive Derelict 12421 | -8/Garrison | Reached level 15 12422 | -8/Garrison | Triggered checkpoint 12518 | -8/Garrison | Spotted B-75 Beast 12544 | -8/Garrison | Destroyed B-75 Beast 12553 | -8/Garrison | Upgraded with Weapon slot (x1) 12554 | -8/Garrison | Upgraded with Power slot (x1) 12746 | -8/Garrison | Garrison Relay disabled 13071 | -8/Garrison | Entered Materials 13071 | -8/Materials | Accompanied by 5 allies 13071 | -8/Materials | Discovered exit to Storage (range 6) 13212 | -8/Materials | Central database locked down 13317 | -8/Materials | Garrison activated, responded to threat 13368 | -8/Materials | Discovered exit to Factory (range 13) 13371 | -8/Materials | Destroyed 12 combat bots 13384 | -8/Materials | Identified exit to Garrison 13384 | -8/Materials | Entered Garrison 13397 | -8/Garrison | Triggered checkpoint 13432 | -8/Garrison | Garrison Relay disabled 13451 | -8/Garrison | Identified exit to Materials 13810 | -8/Garrison | Triggered checkpoint 13821 | -8/Garrison | Destroyed 8 combat bots 13857 | -8/Garrison | Triggered checkpoint 13913 | -8/Garrison | Triggered checkpoint 13979 | -8/Garrison | Garrison Relay disabled 14076 | -8/Garrison | Triggered checkpoint 14245 | -8/Garrison | Core integrity fell below 50% 14363 | -8/Garrison | Garrison Relay disabled 14363 | -8/Garrison | Reached level 16 14507 | -8/Garrison | Triggered checkpoint 14544 | -8/Garrison | Rescued a captive Derelict 14597 | -8/Garrison | Discovered exit to Materials (range 75) 14597 | -8/Garrison | Discovered exit to Materials (range 51) 14597 | -8/Garrison | Discovered exit to Materials (range 6) 14799 | -8/Garrison | Entered Materials 14799 | -8/Materials | Accompanied by 1 ally 14831 | -8/Materials | Identified exit to Garrison 14831 | -8/Materials | Entered Garrison 14831 | -8/Garrison | Accompanied by 1 ally 14894 | -8/Garrison | Triggered checkpoint 14909 | -8/Garrison | Garrison Relay disabled 14909 | -8/Garrison | Garrison Relay disabled 15212 | -8/Garrison | Triggered checkpoint 15302 | -8/Garrison | Garrison Relay disabled 15445 | -8/Garrison | Triggered checkpoint 15514 | -8/Garrison | Discovered exit to Factory (range 12) 15524 | -8/Garrison | Discovered exit to Factory (range 12) 15524 | -8/Garrison | Discovered exit to Factory (range 45) 15524 | -8/Garrison | Discovered exit to Factory (range 49) 15580 | -8/Garrison | Triggered checkpoint 15676 | -8/Garrison | Spotted B-75 Beast 15686 | -8/Garrison | Destroyed B-75 Beast 15897 | -8/Garrison | Triggered checkpoint 15989 | -8/Garrison | Attempted to access garrison exit controls, blocked by remote lockdown 15992 | -8/Garrison | Build established: Hacker-Mutant 16186 | -8/Garrison | Entered Factory 16337 | -7/Factory | Fabricated Dispersion Rifle (x2) 16820 | -7/Factory | Build established: Scavenger-Mutant 16842 | -7/Factory | Reached level 17 16844 | -7/Factory | Found Rocket Array 16986 | -7/Factory | First assault squad dispatched 17270 | -7/Factory | Discovered new exit (range 16) 17394 | -7/Factory | Identified exit to Lower Caves 17434 | -7/Factory | Entered Lower Caves 17440 | -7/Lower Caves | Met a Warlord Commander 17441 | -7/Lower Caves | Learned location of Warlord (-5) 17445 | -7/Lower Caves | Found Encrypted Comm Array 17544 | -7/Lower Caves | Encountered a Warlord checkpoint 17876 | -7/Lower Caves | Discovered new exit (range 13) 17937 | -7/Lower Caves | Entered another Lower Caves area 17982 | -7/Lower Caves | Attracted the attention of an 0b10 checkpoint 18164 | -7/Lower Caves | Spotted B-75 Beast 18199 | -7/Lower Caves | Destroyed B-75 Beast 18266 | -7/Lower Caves | Encountered a Warlord checkpoint 18545 | -7/Lower Caves | Discovered new exit (range 9) 19429 | -7/Lower Caves | Learned location of 1 exit from Factory 19575 | -7/Lower Caves | Discovered new exit (range 11) 19982 | -7/Lower Caves | Entered Zion 19984 | -7/Zion | Reached level 18 19988 | -7/Zion | Upgraded with Utility slot (x1) 20016 | -7/Zion | Gained Derelict followers 20069 | -7/Zion | Acquired unknown access codes intercepted by a Zionite 20080 | -7/Zion | Discovered new exit (range 15) 20124 | -7/Zion | Found CR-A16's Pointy Stick 20399 | -7/Zion | Found Prototype Hackware 20400 | -7/Zion | Identified Exp. System Shield 20404 | -7/Zion | Found Prototype Processor 20405 | -7/Zion | Identified Exp. Armor Integrity Analyzer 20419 | -7/Zion | Found Exp. Targeting Computer 20590 | -7/Zion | Learned Factory emergency access door positions 20706 | -7/Zion | Build established: Hacker-Mutant 21504 | -7/Zion | Build established: Hacker-Gunner 21777 | -7/Zion | Opened final containment barrier to the Deep Caves 21798 | -7/Zion | Discovered new exit (range 3) 21798 | -7/Zion | Saw the warning signs outside the Deep Caves entrance 21802 | -7/Zion | Entered Deep Caves 21802 | -7/Deep Caves | Accompanied by 4 allies 21876 | -7/Deep Caves | Z-Facility disabled 21891 | -7/Deep Caves | Attacked by Z-Imprinter 21915 | -7/Deep Caves | Destroyed Z-Imprinter 21957 | -7/Deep Caves | Found Prototype Protection 21957 | -7/Deep Caves | Identified Zio. Weapon Casing 21960 | -7/Deep Caves | Found Prototype Device 21960 | -7/Deep Caves | Identified Zio. Metafield Generator 22047 | -7/Deep Caves | Found Zio. Weapon Casing 22068 | -7/Deep Caves | Build established: Hacker-Mutant 22421 | -7/Deep Caves | Found Prototype Protection 22421 | -7/Deep Caves | Identified Zio. Heavy Carapace 22472 | -7/Deep Caves | Found Zio. Heavy Carapace 22708 | -7/Deep Caves | Build established: Scavenger-Mutant 22781 | -7/Deep Caves | Found Zio. Weapon Casing 23078 | -7/Deep Caves | Spotted as-07246 23151 | -7/Deep Caves | Destroyed as-07246 23187 | -7/Deep Caves | Triggered Deep Caves wall 23203 | -7/Deep Caves | Destroyed AS-85555 23213 | -7/Deep Caves | Spotted AS-72561 23217 | -7/Deep Caves | Exposed GOLEM chamber 23225 | -7/Deep Caves | Core integrity fell below 50% 23229 | -7/Deep Caves | Destroyed 38 combat bots 23232 | -7/Deep Caves | Spotted as-50230 23245 | -7/Deep Caves | Destroyed AS-72561 23248 | -7/Deep Caves | Destroyed as-50230 23454 | -7/Deep Caves | Found Mobile Assembly Unit 23496 | -7/Deep Caves | Found Prototype Storage 23496 | -7/Deep Caves | Identified Superbattery 25659 | -7/Deep Caves | Discovered new exit (range 6) 25711 | -7/Deep Caves | Entered Proximity Caves 26050 | -6/Proximity Caves | Attracted the attention of an 0b10 base 26105 | -6/Proximity Caves | Destroyed 7 combat bots 27392 | -6/Proximity Caves | Spotted B-75 Beast 27441 | -6/Proximity Caves | Destroyed B-75 Beast 27596 | -6/Proximity Caves | Discovered new exit (range 5) 27896 | -6/Proximity Caves | Entered Factory 27897 | -6/Factory | Identified exit to Lower Caves 27898 | -6/Factory | Reached level 19 27904 | -6/Factory | Upgraded with Propulsion slot (x1) 28107 | -6/Factory | Reached level 20 28107 | -6/Factory | Upgraded with Propulsion slot (x1) 28559 | -6/Factory | Build established: Scavenger-Assassin 28596 | -6/Factory | First assault squad dispatched 29179 | -6/Factory | Destroyed 8 combat bots 29336 | -6/Factory | High security lockdown imminent 29344 | -6/Factory | Reached level 21 29347 | -6/Factory | Upgraded with Propulsion slot (x1) 29365 | -6/Factory | Destroyed 7 combat bots 29416 | -6/Factory | High security lockdown engaged 29610 | -6/Factory | Destroyed 22 combat bots 29642 | -6/Factory | Spotted B-75 Beast 29658 | -6/Factory | Revealed the true nature of CR-A16's Pointy Stick 29661 | -6/Factory | Destroyed B-75 Beast 29782 | -6/Factory | Destroyed 19 combat bots 29785 | -6/Factory | Discovered new exit (range 18) 29798 | -6/Factory | Identified exit to Factory 29841 | -6/Factory | Reached level 22 29867 | -6/Factory | Build established: Scavenger-Scout 29871 | -6/Factory | Core integrity fell below 50% 29917 | -6/Factory | Destroyed 19 combat bots 29935 | -6/Factory | Garrison activated, responded to threat 30026 | -6/Factory | Sterilization system engaged 30026 | -6/Factory | Non-combat units ordered to evacuate 30069 | -6/Factory | Destroyed 33 combat bots 30098 | -6/Factory | Local machine network offline 30126 | -6/Factory | Combat units ordered to evacuate 30280 | -6/Factory | Discovered exit to Factory (range 19) 30326 | -6/Factory | Ambient heat levels rising (+10) 30367 | -6/Factory | Discovered exit to Lower Caves (range 6) 30476 | -6/Factory | Ambient heat levels rising (+10) 30536 | -6/Factory | Discovered exit to Factory (range 9) 30626 | -6/Factory | Ambient heat levels rising (+10) 30673 | -6/Factory | Entered Lower Caves 30870 | -6/Lower Caves | Discovered new exit (range 19) 30881 | -6/Lower Caves | Identified exit to Lower Caves 30902 | -6/Lower Caves | A Derelict revealed a hidden shortcut to meet someone special 30907 | -6/Lower Caves | Identified exit to Data Miner 30911 | -6/Lower Caves | Learned Factory stockpile data 30998 | -6/Lower Caves | Entered another Lower Caves area 31017 | -6/Lower Caves | Spotted B-75 Beast 31024 | -6/Lower Caves | Build established: Scavenger-Sprinter 31059 | -6/Lower Caves | Destroyed B-75 Beast 31245 | -6/Lower Caves | Discovered exit to Data Miner (range 11) 31248 | -6/Lower Caves | Learned location of Extension (-4) 31279 | -6/Lower Caves | Encountered a Warlord checkpoint 31317 | -6/Lower Caves | Discovered exit to Factory (range 13) 31400 | -6/Lower Caves | Entered Data Miner 31400 | -6/Data Miner | Discovered new exit (range 6) 31404 | -6/Data Miner | Met Data Miner 31420 | -6/Data Miner | Learned location of Section 7 (-3) 31420 | -6/Data Miner | Acquired the access code to Warlord's prototype stash 31422 | -6/Data Miner | Received God Mode back door access code from Data Miner 31432 | -6/Data Miner | Data Conduit disabled 31432 | -6/Data Miner | Destroyed Data Miner 31435 | -6/Data Miner | Found Prototype Hackware 31435 | -6/Data Miner | Identified System Mapper 31437 | -6/Data Miner | Found Prototype Hackware 31437 | -6/Data Miner | Identified Quantum Router 31440 | -6/Data Miner | Found Prototype Hackware 31440 | -6/Data Miner | Identified Ghost Barrier 31551 | -6/Data Miner | Found Exp. Thermal Shield 31597 | -6/Data Miner | Entered Proximity Caves 31599 | -5/Proximity Caves | Reached level 23 31624 | -5/Proximity Caves | Attracted the attention of an 0b10 checkpoint 31742 | -5/Proximity Caves | Spotted B-75 Beast 31777 | -5/Proximity Caves | Destroyed B-75 Beast 31836 | -5/Proximity Caves | Destroyed 7 combat bots 31847 | -5/Proximity Caves | Discovered exit to Factory (range 7) 31927 | -5/Proximity Caves | Learned Factory machine intel 32024 | -5/Proximity Caves | Build established: Wizard-Sprinter 32066 | -5/Proximity Caves | Destroyed 7 combat bots 32082 | -5/Proximity Caves | Learned location of 1 exit from Factory 32082 | -5/Proximity Caves | Learned location of 1 exit from Research 32082 | -5/Proximity Caves | Learned 8 Research zone layouts 32082 | -5/Proximity Caves | Learned Factory emergency access door positions 32082 | -5/Proximity Caves | Learned Extension stockpile data 32106 | -5/Proximity Caves | Upgraded with Weapon slot (x1) 32165 | -5/Proximity Caves | Entered Factory 32166 | -5/Factory | Identified exit to Factory 32167 | -5/Factory | Identified exit to Upper Caves 32170 | -5/Factory | Loaded intel: 272 machine locations 32282 | -5/Factory | Reached level 24 32537 | -5/Factory | Upgraded with Weapon slot (x1) 32676 | -5/Factory | Local machine network offline 32925 | -5/Factory | Sucked down chute 32925 | -5/Factory | Entered Waste 32934 | -5/Waste | Spotted C-40 Crusher 32937 | -5/Waste | Spotted C-40 Crusher 32938 | -5/Waste | Spotted C-40 Crusher 32940 | -5/Waste | EMP discharged 32940 | -5/Waste | System corruption reached 10% 32961 | -5/Waste | Destroyed C-40 Crusher 32983 | -5/Waste | Destroyed C-40 Crusher 32986 | -5/Waste | Spotted C-40 Crusher 33002 | -5/Waste | Destroyed C-40 Crusher 33014 | -5/Waste | Spotted C-40 Crusher 33027 | -5/Waste | Spotted C-40 Crusher 33029 | -5/Waste | Destroyed C-40 Crusher 33040 | -5/Waste | EMP discharged 33042 | -5/Waste | Discovered new exit (range 11) 33046 | -5/Waste | Entered Factory 33355 | -5/Factory | Identified exit to DSF 33414 | -5/Factory | Core integrity fell below 50% 33646 | -5/Factory | First assault squad dispatched 33677 | -5/Factory | Identified exit to Garrison 33683 | -5/Factory | Entered Garrison 33716 | -5/Garrison | Triggered checkpoint 33756 | -5/Garrison | Garrison Relay disabled 33766 | -5/Garrison | Phase Generator disabled 33791 | -5/Garrison | Identified exit to Factory 33825 | -5/Garrison | Spotted B-75 Beast 33836 | -5/Garrison | Destroyed 7 combat bots 33880 | -5/Garrison | Reached level 25 33901 | -5/Garrison | Destroyed 7 combat bots 33933 | -5/Garrison | Destroyed B-75 Beast 34039 | -5/Garrison | Triggered checkpoint 34039 | -5/Garrison | Garrison Relay disabled 34218 | -5/Garrison | Destroyed 7 combat bots 34249 | -5/Garrison | Triggered checkpoint 34249 | -5/Garrison | Triggered checkpoint 34284 | -5/Garrison | Triggered checkpoint 34331 | -5/Garrison | Garrison Relay disabled 34435 | -5/Garrison | Garrison Relay disabled 34442 | -5/Garrison | Triggered checkpoint 34469 | -5/Garrison | Entered Factory 34623 | -5/Factory | Discovered exit to Upper Caves (range 15) 34627 | -5/Factory | Entered Upper Caves 34659 | -5/Upper Caves | Attracted the attention of an 0b10 checkpoint 34747 | -5/Upper Caves | Learned Factory emergency access door positions 34757 | -5/Upper Caves | Discovered new exit (range 10) 34791 | -5/Upper Caves | Learned Factory trap positions 34918 | -5/Upper Caves | Entered another Upper Caves area 34929 | -5/Upper Caves | Attracted the attention of an 0b10 checkpoint 35078 | -5/Upper Caves | Learned location of Armory (-3) 35078 | -5/Upper Caves | Learned Extension stockpile data 35078 | -5/Upper Caves | Learned Extension terminal intel 35078 | -5/Upper Caves | Learned Armory terminal intel 35078 | -5/Upper Caves | Learned Extension garrison access intel 35078 | -5/Upper Caves | Learned Armory garrison access intel 35089 | -5/Upper Caves | Destroyed 11 combat bots 35185 | -5/Upper Caves | Discovered new exit (range 9) 35303 | -5/Upper Caves | Entered Warlord 35314 | -5/Warlord | System corruption cleaned by Quarantine Array 35348 | -5/Warlord | Met Warlord 35350 | -5/Warlord | Opened Warlord's prototype stash 35368 | -5/Warlord | Found Prototype Reactor 35368 | -5/Warlord | Identified Vortex Chain Reactor 35372 | -5/Warlord | Found Exp. Core Analyzer 35373 | -5/Warlord | Warlord's base attacked by MAIN.C 35388 | -5/Warlord | Found Prototype Energy Cannon 35388 | -5/Warlord | Identified Vortex Driver 35393 | -5/Warlord | Found Prototype Launcher 35393 | -5/Warlord | Identified Vortex Catalyst Activator 35399 | -5/Warlord | Found Vortex Driver 35472 | -5/Warlord | Found Prototype Energy Gun 35473 | -5/Warlord | Identified Plasma Storm 35545 | -5/Warlord | Found Prototype Device 35545 | -5/Warlord | Identified Minesniffer Drone Bay 35719 | -5/Warlord | Found Prototype Ballistic Cannon 35719 | -5/Warlord | Identified Hvy. Autocannon 35723 | -5/Warlord | Warlord forces counterattacked 35753 | -5/Warlord | Spotted Executioner 35810 | -5/Warlord | Destroyed 7 combat bots 35814 | -5/Warlord | Spotted Striker 35850 | -5/Warlord | Found Exp. Core Analyzer 35922 | -5/Warlord | Opened side exit 35974 | -5/Warlord | Spotted Executioner 35974 | -5/Warlord | Spotted Executioner 35976 | -5/Warlord | Discovered new exit (range 13) 35977 | -5/Warlord | Destroyed Executioner 35979 | -5/Warlord | Destroyed Executioner 35986 | -5/Warlord | Spotted Executioner 35990 | -5/Warlord | Destroyed Executioner 36002 | -5/Warlord | Found Prototype Device 36002 | -5/Warlord | Identified Adv. Kinecellerator 36011 | -5/Warlord | Destroyed 12 combat bots 36048 | -5/Warlord | Warlord base infiltrated, sounded retreat 36064 | -5/Warlord | Build established: Wizard-Mutant 36073 | -5/Warlord | Spotted Striker 36075 | -5/Warlord | Reached level 26 36104 | -5/Warlord | Destroyed 16 combat bots 36173 | -5/Warlord | Spotted Executioner 36177 | -5/Warlord | Spotted Executioner 36178 | -5/Warlord | Spotted Executioner 36180 | -5/Warlord | Destroyed Executioner 36182 | -5/Warlord | Destroyed Executioner 36209 | -5/Warlord | Destroyed 16 combat bots 36273 | -5/Warlord | Spotted Executioner 36275 | -5/Warlord | Destroyed Executioner 36298 | -5/Warlord | Destroyed 17 combat bots 36374 | -5/Warlord | Destroyed Striker 36403 | -5/Warlord | Destroyed 17 combat bots 36475 | -5/Warlord | Spotted Executioner 36475 | -5/Warlord | Spotted Striker 36475 | -5/Warlord | Destroyed Executioner 36477 | -5/Warlord | Destroyed Striker 36504 | -5/Warlord | Destroyed 17 combat bots 36573 | -5/Warlord | Destroyed Executioner 36602 | -5/Warlord | Destroyed 19 combat bots 36673 | -5/Warlord | Destroyed Striker 36673 | -5/Warlord | Spotted Striker 36677 | -5/Warlord | Destroyed Striker 36692 | -5/Warlord | Spotted Striker 36699 | -5/Warlord | Destroyed Striker 36723 | -5/Warlord | Destroyed 24 combat bots 36754 | -5/Warlord | Destroyed 9 combat bots 36775 | -5/Warlord | Spotted Striker 36780 | -5/Warlord | Destroyed Striker 36810 | -5/Warlord | Destroyed 18 combat bots 37009 | -5/Warlord | Spotted Striker 37009 | -5/Warlord | Destroyed Striker 37021 | -5/Warlord | Reached level 27 37033 | -5/Warlord | Upgraded with Propulsion slot (x1) 37071 | -5/Warlord | Spotted Striker 37096 | -5/Warlord | Destroyed Striker 37098 | -5/Warlord | Spotted Striker 37110 | -5/Warlord | Destroyed Striker 37149 | -5/Warlord | Destroyed 10 combat bots 37260 | -5/Warlord | Spotted Striker 37323 | -5/Warlord | Destroyed Striker 37360 | -5/Warlord | Found System Purifier 37472 | -5/Warlord | Found Prototype Special Weapon 37472 | -5/Warlord | Identified RU-N14's Throwing Claymores v3 37476 | -5/Warlord | Found RU-N14's Throwing Claymores v3 37481 | -5/Warlord | Found RU-N14's Throwing Claymores v3 37483 | -5/Warlord | Found RU-N14's Throwing Claymores v3 37485 | -5/Warlord | Found RU-N14's Throwing Claymores v3 37488 | -5/Warlord | Found RU-N14's Throwing Claymores v3 37973 | -5/Warlord | Entered Proximity Caves 38139 | -4/Proximity Caves | Learned Research trap positions 38196 | -4/Proximity Caves | Build established: Wizard-Executioner 38249 | -4/Proximity Caves | Discovered exit to Factory (range 18) 38478 | -4/Proximity Caves | Attracted the attention of an 0b10 outpost 38518 | -4/Proximity Caves | Destroyed 7 combat bots 38788 | -4/Proximity Caves | Learned Research terminal intel 38925 | -4/Proximity Caves | Entered Factory 38926 | -4/Factory | Identified exit to Extension 38926 | -4/Factory | Core integrity fell below 50% 38927 | -4/Factory | Loaded intel: 107 trap records 39013 | -4/Factory | Identified exit to Upper Caves 39013 | -4/Factory | Identified exit to Research 39119 | -4/Factory | Identified exit to DSF 39151 | -4/Factory | Spotted B-86 Titan 39361 | -4/Factory | Fabricated Antigrav Array (x1) 39594 | -4/Factory | Found Prototype Device 39594 | -4/Factory | Identified Active Sensor Suite 39675 | -4/Factory | First assault squad dispatched 39690 | -4/Factory | Reached level 28 39805 | -4/Factory | Build established: Wizard-Scout 39836 | -4/Factory | Core integrity fell below 20% 39845 | -4/Factory | Fabricated M-30 Cleanser? 39885 | -4/Factory | Destroyed 15 combat bots 39927 | -4/Factory | Cargo convoy interrupted 40201 | -4/Factory | High security lockdown imminent 40220 | -4/Factory | Local machine network offline 40274 | -4/Factory | Fabricated Imp. Heavy Siege Treads (x2) 40281 | -4/Factory | High security lockdown engaged 40577 | -4/Factory | Destroyed 18 combat bots 40660 | -4/Factory | Reached level 29 40696 | -4/Factory | Destroyed 12 combat bots 40795 | -4/Factory | Destroyed 7 combat bots 40846 | -4/Factory | Destroyed B-86 Titan 40859 | -4/Factory | Sterilization system engaged 40859 | -4/Factory | Non-combat units ordered to evacuate 40914 | -4/Factory | Destroyed 12 combat bots 40959 | -4/Factory | Combat units ordered to evacuate 41072 | -4/Factory | Destroyed 11 combat bots 41159 | -4/Factory | Ambient heat levels rising (+10) 41309 | -4/Factory | Ambient heat levels rising (+10) 41453 | -4/Factory | Build established: Wizard-Executioner 41459 | -4/Factory | Ambient heat levels rising (+10) 41609 | -4/Factory | Ambient heat levels rising (+10) 41715 | -4/Factory | Entered Extension 41716 | -4/Extension | Loaded intel: 19 terminal locations 41738 | -4/Extension | Disrupted transfer network 41814 | -4/Extension | Identified exit to Cetus 41837 | -4/Extension | Rescued a captive Derelict 41965 | -4/Extension | First assault squad dispatched 42053 | -4/Extension | Rescued a captive Derelict 42054 | -4/Extension | Rescued a captive Derelict 42114 | -4/Extension | High security lockdown imminent 42165 | -4/Extension | Build established: Wizard-Mutant 42194 | -4/Extension | High security lockdown engaged 42386 | -4/Extension | Destroyed 10 combat bots 42430 | -4/Extension | System corruption reached 10% 42465 | -4/Extension | Local machine network offline 42468 | -4/Extension | Destroyed 21 combat bots 42638 | -4/Extension | Destroyed 18 combat bots 42664 | -4/Extension | Spotted B-86 Titan 42676 | -4/Extension | Destroyed by B-86 Titan with Hardcell Cannon Last Messages --------------- 42650_ SB11L|MK E8V /QC#UJFD/8SO|ZHFVM>& 42650_ Protomatter-54 decays. 42652_ Acquired 84 matter. 42658_ HV Slug penetrates S-27 Virus. 42658_ S-27 Virus destroyed. 42661_ Acquired 89 matter. 42664_ ALERT: Heavy assault forces dispatched. 42666_ HV Slug penetrates B-86 Titan. 42666_ B-86 Titan suffers critical hit (Destroy). 42666_ HV Slug penetrates B-86 Titan. 42669_ B-86 Titan suffers critical hit (Destroy). 42669_ HV Slug penetrates B-86 Titan. 42672_ B-86 Titan suffers critical hit (Destroy). 42672_ Destroyed Rnf. Fission Core. 42672_ HV Slug penetrates B-86 Titan. 42672_ B-86 Titan suffers critical hit (Destroy). 42672_ Destroyed Hvy. Treads. 42672_ HV Slug penetrates B-86 Titan. 42675_ B-86 Titan suffers critical hit (Destroy). 42675_ HV Slug penetrates B-86 Titan. Map ----- +----------------------------------------------------+ | | | ?????????????????????????????????????????????????? | | ?????????????????????????????????????????????????? | | ?????????????????????????????????????????????????? | | ?????????????????????????????????????????????????? | | ?????????????????????????????????????????????????? | | ?????????????????????????????????????????????????? | | ?????????########????????????????????????????????? | | ?????????# #????????????????????????????????? | | #????????# = #?##"#???????????????????????????? | | #????????# [ #?#T!#???????????????????????????? | | ????????# = !####=######??????????????????????? | | [#???????# ! [[ =*=[^%%#??????????????????????? | | #%##?????# /*%% #%%= %=^[[#??????????????????????? | | ##%##########+###%%[/=!^*=#??????????????????????? | | %[%%!%%*= !%%[%! %=^= #??????????????????????? | | %##%##################### #??????????????????????? | | [=##%#??????????????????# #??????????????????????? | | "##?##??????????????????#/#??????????????????????? | | ????????????????????????#!#??????????T???????????? | | ????????????????????????# #??????????????????????? | | ????????????????????????#!#??????????????????????? | | ????????????????????????#[#??????????????????????? | | ????????????????????????#%#??????????????????????? | | ????????????????????????#%#??????????????????????? | | ????????????????????????#@#??????????????????????? | | ???????????????????????T%*#??????????????????????? | | ??????????????????????"![ #??????????????????????? | | ??????????????????????###=#??????????????????????? | | ????????????????????????#%#??????????????????????? | | ????????????????????????#=#??????????????????????? | | ????????????????????????#=#??????????????????????? | | ????????????????????????#=#??????????????????????? | | ????????????????????????"%"??????????????????????? | | ????????????????????????"|"??????????????????????? | | ????????????????????????%%=??????????????????????? | | ????????????????????????[*%??????????????????????? | | ????????????????????????%*!??????????????????????? | | ????????????????????????%=[??????????????????????? | | ???????????????????????? ??????????????????????? | | ???????????????????????? ??????????????????????? | | ???????????????????????? ??????????????????????? | | ???????????????????????? ??????????????????????? | | ???????????????????????? B??????????????????????? | | ???????????????????????? B??????????????????????? | | ?????????????????????????????????????????????????? | | ?????????????????????????????????????????????????? | | ?????????????????????????????????????????????????? | | ????????????????????????????T????????????????????? | | ?????????????????????????????????????????????????? | +----------------------------------------------------+ Best States ------------- Heat Dissipation 128 Coolant Potential 120 Energy Generation 85 Energy Capacity 2200 Matter Stores 300 Matter Capacity 300 Sight Range 20 Robot Scan Range 26 Terrain Scan Range 16 Terrain Scan Density 110 Jamming Range 14 Cloak Strength 2 Additional Mass Support 12 EM Shielding 3 Armor Coverage 2400 Resistance: KI 30 Resistance: TH 90 Resistance: EX 90 Weapon Shielding 100 Weapon Cycling 25 Phase Shifting 15 Evasion (%) 90 Targeting Accuracy 24 Target Analysis 6 Core Analysis 8 Armor Integrity Analysis 50 Recoil Reduction 4 Matter Filtering 30 Kinecelleration 40 Salvage Targeting 5 Offensive Hacking 47 Defensive Hacking 67 Item Schematics ----------------- Enh. Autogun | -9/Materials | Scanalyzed Imp. Treads | -9/Materials | Scanalyzed Mak. System Shield | -7/Zion | Archive Matter Compressor | -7/Zion | Archive Adv. ECM Suite | -7/Zion | Archive Hvy. Flak Cannon | -7/Zion | Archive System Restoration Module | -7/Zion | Archive Lgt. Angular Momentum Engine | -7/Zion | Archive Gravmag System | -7/Zion | Archive KE Penetrator | -7/Zion | Archive Antigrav System | -7/Zion | Archive Component Analysis Suite | -7/Zion | Archive Coil Gun | -7/Zion | Archive Hvy. Rocket Launcher | -7/Zion | Archive Hyp. Gauss Rifle | -7/Zion | Archive Plasma Flamer | -7/Zion | Archive Weapon Cycler | -7/Zion | Archive Riot Gun | -7/Zion | Free Hvy. Riot Gun | -7/Zion | Free Battle Rifle | -7/Zion | Free Hvy. Battle Rifle | -7/Zion | Free Battle Cannon | -7/Zion | Free Tactical Coordination Suite | -7/Zion | Free Adv. Phase Shifter | -6/Factory | Scanalyzed Exp. Reaction Control System | -6/Factory | Scanalyzed Lrn. Tractor Beam | -6/Factory | Scanalyzed Combat Drone Bay | -6/Data Miner | Free Lgt. Regenerative Plating | -6/Data Miner | Free Cld. Nuclear Pulse Thruster | -6/Data Miner | Free Prc. Matter Filter | -6/Data Miner | Free Neutron Cannon | -6/Data Miner | Free Centrium Wheel | -6/Data Miner | Free Adv. Thermal Shield | -6/Data Miner | Free Railgun | -6/Data Miner | Free Imp. Focal Shield | -6/Data Miner | Free Antigrav Array | -6/Data Miner | Free Adv. Weapon Cycler | -6/Data Miner | Free Adv. Reaction Control System | -5/Factory | Hacked Exp. Thermal Shield | -5/Factory | Scanalyzed Adv. Trap Extractor | -5/Factory | Extracted Shield Generator | -5/Factory | Extracted Hvy. Treads | -5/Factory | Extracted Q-thruster | -5/Factory | Hacked Impulse Thruster Array | -5/Factory | Hacked Imp. Force Field | -5/Factory | Scanalyzed Adv. Power Amplifier | -4/Factory | Hacked Imp. Heavy Siege Treads | -4/Factory | Hacked Quantum Capacitor | -4/Extension | Hacked Adv. Transmission Jammer | -4/Extension | Hacked Robot Schematics ------------------ L-31 Rogue | -7/Zion | Archive K-01 Serf | -7/Zion | Archive G-47 Trooper | -7/Zion | Archive Y-72 Warden | -7/Zion | Archive G-50 Soldier | -6/Data Miner | Free P-60 Hacker | -6/Data Miner | Free S-27 Virus | -6/Data Miner | Free Y-64 Sentinel | -6/Data Miner | Free M-22 Extractor | -6/Data Miner | Free W-44 Eye | -6/Data Miner | Free B-48 Gladiator | -5/Factory | Hacked L-61 Swordsman | -4/Factory | Hacked B-60 Warrior | -4/Factory | Hacked M-30 Cleanser | -4/Factory | Hacked G-67 Veteran | -4/Extension | Hacked Fabricated ------------ Dispersion Rifle | x2 | -7/Factory | Preloaded Antigrav Array | x1 | -4/Factory M-30 Cleanser | x1 | -4/Factory | Preloaded Imp. Heavy Siege Treads | x2 | -4/Factory Alien Tech Used ----------------- None Achievements -------------- None Challenges ------------ None RPGLIKE | -11 -10 -10 -9 -9 -9 -8 -8 -8 -8 -8 -8 -8 -7 -7 -7 -7 -7 -6 -6 -6 -6 -6 -5 -5 -5 -5 -5 -5 -5 -5 -5 -4 -4 -4 --------- Run | Jun Mat Min Mat Min Exi Min Mat Gar Mat Gar Mat Gar Fac Low Low Zio Dee Pro Fac Low Low Dat Pro Fac Was Fac Gar Fac Upp Upp War Pro Fac Ext Levels Raised 28 | . 3 1 5 1 . 1 2 1 . 1 . . 1 . . 1 . . 4 . . . 1 1 . . 1 . . . 2 . 2 . XP Earned 46228 | 3000 4731 1300 8723 668 80 1304 2849 1652 491 786 3 667 1326 335 484 141 329 1113 5502 198 165 84 1053 1104 32 369 938 35 182 298 2178 604 2722 782 XP Spent 44980 | 2950 4350 1700 6970 . 1310 1500 600 4200 . . . 1500 330 . . 2600 400 . 5600 . . 320 1400 1700 . . 980 . . . 3320 . 2925 325 Upgrades 74 | 5 9 1 11 . 3 1 1 3 . . . 2 3 . . 1 2 . 7 . . 2 1 1 . . 5 . . . 5 . 6 5 Power Slot 2 | . . . 1 . . . . 1 . . . . . . . . . . . . . . . . . . . . . . . . . . Propulsion Slot 5 | . 1 . . . . . . . . . . . . . . . . . 3 . . . . . . . . . . . 1 . . . Utility Slot 8 | 3 1 1 1 . . . . 1 . . . . . . . 1 . . . . . . . . . . . . . . . . . . Weapon Slot 5 | 1 . . 1 . . . . 1 . . . . . . . . . . . . . . 1 1 . . . . . . . . . . Core Integrity 7 | . . . . . 2 . . . . . . . . . . . . . . . . . . . . . . . . . . . . 5 Heat Dissipation 12 | . . . 2 . . . . . . . . . 3 . . . . . . . . 2 . . . . 4 . . . 1 . . . Mass Support 1 | . . . . . . . . . . . . . . . . . . . . . . . . . . . 1 . . . . . . . Inventory Capacity 6 | . 2 . 2 . 1 1 . . . . . . . . . . . . . . . . . . . . . . . . . . . . Sight Range 4 | . . . . . . . . . . . . . . . . . 2 . 2 . . . . . . . . . . . . . . . Sensor Range 3 | . . . . . . . . . . . . . . . . . . . . . . . . . . . . . . . . . 3 . Terrain Scan Density 1 | 1 . . . . . . . . . . . . . . . . . . . . . . . . . . . . . . . . . . Ranged Accuracy 8 | . 1 . 1 . . . 1 . . . . 2 . . . . . . 1 . . . . . . . . . . . 1 . 1 . Melee Accuracy 1 | . . . . . . . . . . . . . . . . . . . 1 . . . . . . . . . . . . . . . Hack Attack % 3 | . 2 . 1 . . . . . . . . . . . . . . . . . . . . . . . . . . . . . . . Hack Defense % 2 | . 2 . . . . . . . . . . . . . . . . . . . . . . . . . . . . . . . . . KI Resistance % 1 | . . . . . . . . . . . . . . . . . . . . . . . . . . . . . . . 1 . . . KI Damage % 2 | . . . 2 . . . . . . . . . . . . . . . . . . . . . . . . . . . . . . . EX Damage % 3 | . . . . . . . . . . . . . . . . . . . . . . . . . . . . . . . 1 . 2 . Protomatter Created 14486 | . 310 345 789 191 91 257 393 827 282 527 . 321 162 98 223 . 882 301 1522 293 225 173 252 245 . 245 709 74 73 307 1336 407 1744 882 Integrity Restored 23933 | . 555 454 2161 526 273 627 921 1300 395 905 . 684 187 111 325 . 1418 524 1506 380 350 27 408 549 . 465 1243 168 155 224 1844 471 3820 957 Core 17315 | . 444 333 1794 314 273 627 465 407 362 726 . 516 142 54 222 . 811 370 1384 104 281 15 391 391 . 465 890 150 143 169 805 454 2856 957 Parts 6618 | . 111 121 367 212 . . 456 893 33 179 . 168 45 57 103 . 607 154 122 276 69 12 17 158 . . 353 18 12 55 1039 17 964 . Protomatter Decayed 6438 | . 110 150 278 27 . 113 127 428 181 216 . 193 88 50 105 52 299 121 740 197 104 87 114 62 . 99 234 17 9 307 1372 . 320 238 Game ------ Seed DispersionActivePlating Manual? 1 Play Time 07:12:09 Cumulative 510.6 hours Start 2023.03.22 @ 11:10:33 End 2023.03.25 @ 02:20:41 Sessions 41 Manual Loads 0 Difficulty Rogue Special Mode Winter2019/RPGLIKE Game No. 535 Rogue 535 Adventurer 0 Explorer 0 Win Type - Total 1 Types 1/0/0/0/0/0/0/0/0 Lore% 63 Gallery% 83 Achievement% 65 Wizard Run 0 Options --------- ASCII 0 Keyboard 0 Movement Mouse Keybinds 0 Fullscreen 2 Font 24/Smallcaps Map View 76x50 Tactical HUD 1 Map Filters NONE Filters NONE Steam 1 RUN: 627ef310-fc5a-49c4-b20a-cac6af6da985